Department,Entity,Pay Date,Product Family,Expense area,Net Amount,Supplier Name,Transaction Number
BEIS,UKAEA,16/05/2022,Engineering Goods,Fusion,"115,430.00",NEWTEC Scientific,5118299
BEIS,UKAEA,16/05/2022,ICT,Support Services,"-19,247.58",Cinos Limited,5118426
BEIS,UKAEA,16/05/2022,ICT,Support Services,"-1,375.00",Cinos Limited,5118426
BEIS,UKAEA,12/05/2022,Engineering Goods,Other,"9,893.80",IBS Inc.,5119644
BEIS,UKAEA,18/05/2022,Construction,Support Services,"4,178.13",Doosan Babcock Ltd.,5120093
BEIS,UKAEA,11/05/2022,Research,Fusion,"2,513.62",University of York - GBP,5120237
BEIS,UKAEA,11/05/2022,Research,Fusion,"2,513.62",University of York - GBP,5120238
BEIS,UKAEA,18/05/2022,Construction,Fusion,"-1,675.26",Doosan Babcock Ltd.,5120268
BEIS,UKAEA,18/05/2022,Construction,Fusion,"-5,833.05",Doosan Babcock Ltd.,5120269
BEIS,UKAEA,11/05/2022,Research,Fusion,"3,674.61",University of York - GBP,5120293
BEIS,UKAEA,11/05/2022,Research,Fusion,"2,527.57",University of York - GBP,5120309
BEIS,UKAEA,11/05/2022,Research,Fusion,"-19,796.00",University of York - GBP,5120429
BEIS,UKAEA,18/05/2022,Construction,Support Services,"1,623.94",Doosan Babcock Ltd.,5120537
BEIS,UKAEA,06/05/2022,Hired Agency Staff - Rullion CMF/PO,Fusion,"11,868.24",Rullion Engineering Ltd,5120659
BEIS,UKAEA,06/05/2022,Hired Agency Staff - Rullion CMF/PO,Fusion,"5,183.49",Rullion Engineering Ltd,5120660
BEIS,UKAEA,06/05/2022,Hired Agency Staff - Rullion CMF/PO,Fusion,"3,715.25",Rullion Engineering Ltd,5120661
BEIS,UKAEA,06/05/2022,Hired Agency Staff - Rullion CMF/PO,Other,"3,825.77",Rullion Engineering Ltd,5120662
BEIS,UKAEA,06/05/2022,Hired Agency Staff - Rullion CMF/PO,Fusion,"3,483.37",Rullion Engineering Ltd,5120663
BEIS,UKAEA,06/05/2022,Hired Agency Staff - Rullion CMF/PO,Fusion,"1,809.00",Rullion Engineering Ltd,5120664
BEIS,UKAEA,06/05/2022,Hired Agency Staff - Rullion CMF/PO,Fusion,"3,362.90",Rullion Engineering Ltd,5120668
BEIS,UKAEA,06/05/2022,Engineering Goods,Fusion,"1,000.00",RS Components Ltd,5120669
BEIS,UKAEA,06/05/2022,Hired Agency Staff - Rullion CMF/PO,Fusion,"9,185.44",Rullion Engineering Ltd,5120670
BEIS,UKAEA,06/05/2022,Professional Services,Other,"20,187.50",James Fisher Nuclear Limited,5120672
BEIS,UKAEA,06/05/2022,ICT,Other,"1,800.00",Network Installation Solutions Ltd,5120675
BEIS,UKAEA,06/05/2022,Engineering Goods,Fusion,"1,465.23",Greyhound Chromatography,5120677
BEIS,UKAEA,06/05/2022,Engineering Goods,Fusion,865.20,FISHERSCIENTIFIC,5120678
BEIS,UKAEA,06/05/2022,Hired Agency Staff - Rullion CMF/PO,Fusion,"2,720.44",Rullion Engineering Ltd,5120679
BEIS,UKAEA,06/05/2022,Hired Agency Staff - Rullion CMF/PO,Fusion,"3,132.62",Rullion Engineering Ltd,5120680
BEIS,UKAEA,06/05/2022,Hired Agency Staff - Rullion CMF/PO,Fusion,"3,980.10",Rullion Engineering Ltd,5120681
BEIS,UKAEA,06/05/2022,Engineering Goods,Fusion,"3,891.42",Swagelok London,5120684
BEIS,UKAEA,06/05/2022,Hired Agency Staff - Rullion CMF/PO,Fusion,"2,212.52",Rullion Engineering Ltd,5120685
BEIS,UKAEA,06/05/2022,Hired Agency Staff - Rullion CMF/PO,Fusion,976.51,Rullion Engineering Ltd,5120688
BEIS,UKAEA,06/05/2022,Engineering Goods,Fusion,"2,863.49",Swagelok London,5120693
BEIS,UKAEA,06/05/2022,Hired Agency Staff - Rullion CMF/PO,Fusion,"1,210.83",Rullion Engineering Ltd,5120696
BEIS,UKAEA,06/05/2022,Research,Fusion,"49,253.28",University of Bristol,5120703
BEIS,UKAEA,06/05/2022,Hired Agency Staff - Rullion CMF/PO,Fusion,"5,444.52",Rullion Engineering Ltd,5120704
BEIS,UKAEA,06/05/2022,Learning and Development,Fusion,"1,237.50",Premier People Solutions T/A Premier Partnership,5120705
BEIS,UKAEA,06/05/2022,Research,Fusion,"25,183.75",Queens University Belfast,5120708
BEIS,UKAEA,06/05/2022,Hired Agency Staff - Rullion CMF/PO,Support Services,"8,088.00",Rullion Engineering Ltd,5120710
BEIS,UKAEA,06/05/2022,Hired Agency Staff - Rullion CMF/PO,Fusion,"5,070.38",Rullion Engineering Ltd,5120711
BEIS,UKAEA,06/05/2022,Engineering Goods,Fusion,"15,683.00",Burckhardt Compression UK Ltd,5120713
BEIS,UKAEA,06/05/2022,Hired Agency Staff - Rullion CMF/PO,Fusion,"16,341.80",Rullion Engineering Ltd,5120714
BEIS,UKAEA,06/05/2022,Construction,Fusion,"7,709.88",MEMS Power Generation Limited,5120715
BEIS,UKAEA,06/05/2022,Hired Agency Staff - Rullion CMF/PO,Support Services,"2,246.63",Rullion Engineering Ltd,5120717
BEIS,UKAEA,06/05/2022,Engineering Goods,Fusion,"7,308.20",Swagelok London,5120718
BEIS,UKAEA,06/05/2022,Hired Agency Staff - Rullion CMF/PO,Fusion,"4,147.88",Rullion Engineering Ltd,5120719
BEIS,UKAEA,06/05/2022,Engineering Goods,Fusion,"3,219.07",Machining Techology (Mach-Tech) Ltd,5120726
BEIS,UKAEA,06/05/2022,Engineering Goods,Fusion,628.20,Lewvac Components Ltd.,5120727
BEIS,UKAEA,06/05/2022,Hired Agency Staff - Rullion CMF/PO,Fusion,"1,426.32",Rullion Engineering Ltd,5120729
BEIS,UKAEA,06/05/2022,Engineering Goods,Property,"9,883.42",Darnells Ltd,5120736
BEIS,UKAEA,06/05/2022,Learning and Development,Other,"1,237.50",Premier People Solutions T/A Premier Partnership,5120737
BEIS,UKAEA,06/05/2022,Hired Agency Staff - Rullion CMF/PO,Fusion,"4,326.00",Rullion Engineering Ltd,5120738
BEIS,UKAEA,06/05/2022,Facilities,Property,950.00,Idverde Ltd,5120739
BEIS,UKAEA,06/05/2022,Engineering Goods,Other,"2,845.00",Sundry Supplier,5120742
BEIS,UKAEA,06/05/2022,Engineering Goods,Fusion,"1,425.00",Acrona Engineering Ltd,5120749
BEIS,UKAEA,06/05/2022,Facilities,Other,"2,150.00",SouthernsBroadstock Limited,5120752
BEIS,UKAEA,06/05/2022,Engineering Goods,Fusion,"2,110.00",Laser Components UK Ltd,5120753
BEIS,UKAEA,06/05/2022,Facilities,Other,"3,204.00",SouthernsBroadstock Limited,5120754
BEIS,UKAEA,06/05/2022,Learning and Development,Fusion,"6,300.00",Aspen Technology Inc.,5120757
BEIS,UKAEA,06/05/2022,Engineering Goods,Fusion,"11,142.00",Gas and Liquid Controls Limited,5120758
BEIS,UKAEA,06/05/2022,Engineering Goods,Fusion,"3,311.00",Motivair,5120759
BEIS,UKAEA,06/05/2022,Engineering Goods,Fusion,"1,268.30",Peak Sensors Ltd,5120760
BEIS,UKAEA,06/05/2022,Hired Agency Staff - Rullion CMF/PO,Support Services,"4,071.39",Rullion Engineering Ltd,5120763
BEIS,UKAEA,18/05/2022,Engineering Goods,Fusion,"1,036.00",Doosan Babcock Ltd.,5120766
BEIS,UKAEA,06/05/2022,Hired Agency Staff - Rullion CMF/PO,Fusion,"3,592.96",Rullion Engineering Ltd,5120767
BEIS,UKAEA,06/05/2022,Facilities,Fusion,"20,599.74",Atkins Ltd,5120768
BEIS,UKAEA,06/05/2022,Professional Services,Fusion,"56,910.00",Atkins Ltd,5120768
BEIS,UKAEA,06/05/2022,Engineering Goods,Other,"1,953.21",Carillon Industrial Services Ltd,5120769
BEIS,UKAEA,06/05/2022,Facilities,Other,"28,222.00",SouthernsBroadstock Limited,5120772
BEIS,UKAEA,06/05/2022,Professional Services,Other,"4,247.00",Environment Agency,5120773
BEIS,UKAEA,06/05/2022,Engineering Goods,Fusion,800.01,Farnell Electronic Components Ltd,5120778
BEIS,UKAEA,06/05/2022,Facilities,Property,"4,758.64",SPIE Limited,5120779
BEIS,UKAEA,06/05/2022,Facilities,Property,"18,726.12",SPIE Limited,5120779
BEIS,UKAEA,06/05/2022,Facilities,Property,"61,924.71",SPIE Limited,5120779
BEIS,UKAEA,06/05/2022,Facilities,Fusion,"74,009.44",SPIE Limited,5120779
BEIS,UKAEA,06/05/2022,Facilities,Fusion,"5,057.66",SPIE Limited,5120780
BEIS,UKAEA,06/05/2022,Facilities,Property,"6,619.21",SPIE Limited,5120780
BEIS,UKAEA,06/05/2022,Facilities,Property,"26,185.76",SPIE Limited,5120780
BEIS,UKAEA,06/05/2022,Facilities,Property,"50,018.10",SPIE Limited,5120780
BEIS,UKAEA,06/05/2022,Construction,Other,"58,935.25",Gows Lybster Limited,5120781
BEIS,UKAEA,06/05/2022,Professional Services,Other,"194,664.34",Gows Lybster Limited,5120781
BEIS,UKAEA,06/05/2022,Personnel Related,Fusion,775.00,Webrecruit,5120782
BEIS,UKAEA,06/05/2022,Hired Agency Staff - Rullion CMF/PO,Support Services,"7,396.23",Rullion Engineering Ltd,5120786
BEIS,UKAEA,06/05/2022,Learning and Development,Support Services,"3,450.00",Premier People Solutions T/A Premier Partnership,5120787
BEIS,UKAEA,06/05/2022,Engineering Goods,Fusion,"3,002.02",FTI Ltd,5120789
BEIS,UKAEA,06/05/2022,Professional Services,Other,"-35,145.00",University of Bristol,5120790
BEIS,UKAEA,06/05/2022,Hired Agency Staff - Rullion CMF/PO,Fusion,"5,231.00",Rullion Engineering Ltd,5120791
BEIS,UKAEA,06/05/2022,Hired Agency Staff - Rullion CMF/PO,Fusion,"4,587.62",Rullion Engineering Ltd,5120792
BEIS,UKAEA,06/05/2022,Hired Agency Staff - Rullion CMF/PO,Fusion,"4,466.28",Rullion Engineering Ltd,5120793
BEIS,UKAEA,06/05/2022,Engineering Goods,Fusion,"3,940.00",Island Optics Ltd,5120794
BEIS,UKAEA,06/05/2022,Hired Agency Staff - Rullion CMF/PO,Fusion,"3,093.71",Rullion Engineering Ltd,5120795
BEIS,UKAEA,06/05/2022,Professional Services,Property,"1,000.00",Carter Jonas LLP,5120796
BEIS,UKAEA,25/05/2022,Facilities,Property,"-3,551.36",Castle Water Ltd,5120805
BEIS,UKAEA,06/05/2022,Engineering Goods,Fusion,"2,815.00",Transerv Europe Limited,5120806
BEIS,UKAEA,06/05/2022,Engineering Goods,Fusion,"5,950.00",LR Engineering,5120807
BEIS,UKAEA,06/05/2022,Engineering Goods,Fusion,"1,093.20",RS Components Ltd,5120808
BEIS,UKAEA,06/05/2022,Facilities,Property,"1,570.17",ASSA ABLOY Ltd,5120809
BEIS,UKAEA,06/05/2022,ICT,Property,545.00,Network Installation Solutions Ltd,5120810
BEIS,UKAEA,06/05/2022,Professional Services,Support Services,"12,864.25",HM Treasury T/A Government Internal Audit Service,5120812
BEIS,UKAEA,06/05/2022,Professional Services,Other,"35,145.00",University of Bristol,5120813
BEIS,UKAEA,06/05/2022,Energy and Fuels,Fusion,"18,500.00",Consarc Engineering Ltd,5120817
BEIS,UKAEA,06/05/2022,Engineering Goods,Fusion,"98,000.00",Consarc Engineering Ltd,5120817
BEIS,UKAEA,06/05/2022,Consultancy - Other (per Cabinet Office definition),Other,"32,819.00",Atkins Ltd,5120818
BEIS,UKAEA,06/05/2022,Professional Services,Fusion,"81,983.06",Quartzelec Ltd,5120819
BEIS,UKAEA,06/05/2022,Professional Services,Fusion,"82,926.55",Quartzelec Ltd,5120820
BEIS,UKAEA,06/05/2022,Engineering Goods,Fusion,"1,773.64",Beckhoff Automation Ltd,5120822
BEIS,UKAEA,06/05/2022,Hired Agency Staff - Rullion CMF/PO,Fusion,571.50,Rullion Engineering Ltd,5120826
BEIS,UKAEA,06/05/2022,Hired Agency Staff - Rullion CMF/PO,Fusion,"3,520.14",Rullion Engineering Ltd,5120827
BEIS,UKAEA,06/05/2022,Engineering Goods,Fusion,"1,725.00",Coker Exhibition Systems Ltd,5120829
BEIS,UKAEA,06/05/2022,Hired Agency Staff - Rullion CMF/PO,Fusion,"2,317.50",Rullion Engineering Ltd,5120830
BEIS,UKAEA,06/05/2022,Hired Agency Staff - Rullion CMF/PO,Fusion,"1,762.50",Rullion Engineering Ltd,5120831
BEIS,UKAEA,06/05/2022,Engineering Goods,Other,"17,742.11",Lapp Limited,5120833
BEIS,UKAEA,06/05/2022,Professional Services,Property,"1,859.02",Carter Jonas LLP,5120834
BEIS,UKAEA,06/05/2022,Engineering Goods,Fusion,"2,500.00",Crane Care Ltd,5120836
BEIS,UKAEA,13/05/2022,Travel,Fusion,"4,164.24",EUDAT,5120840
BEIS,UKAEA,06/05/2022,Research,Fusion,"2,264.29",University of Liverpool,5120841
BEIS,UKAEA,06/05/2022,Engineering Goods,Fusion,"3,459.02",British Salt,5120842
BEIS,UKAEA,06/05/2022,Engineering Goods,Other,"6,780.00",Tobii Pro Uk Limited,5120847
BEIS,UKAEA,06/05/2022,Engineering Goods,Fusion,"2,871.94",Harting Ltd,5120848
BEIS,UKAEA,06/05/2022,Professional Services,Other,"8,333.33",Generic Robotics Ltd.,5120849
BEIS,UKAEA,06/05/2022,Professional Services,Other,"8,333.33",Generic Robotics Ltd.,5120849
BEIS,UKAEA,06/05/2022,Professional Services,Other,"8,333.33",Generic Robotics Ltd.,5120849
BEIS,UKAEA,06/05/2022,Engineering Goods,Fusion,"2,054.16",RS Components Ltd,5120853
BEIS,UKAEA,06/05/2022,Engineering Goods,Fusion,"3,146.54",RS Components Ltd,5120853
BEIS,UKAEA,06/05/2022,Engineering Goods,Fusion,"1,834.55",Harting Ltd,5120854
BEIS,UKAEA,06/05/2022,Hired Agency Staff - Rullion CMF/PO,Support Services,"6,142.98",Rullion Engineering Ltd,5120855
BEIS,UKAEA,06/05/2022,Engineering Goods,Fusion,"1,370.16",Sundry Supplier,5120857
BEIS,UKAEA,06/05/2022,Learning and Development,Fusion,"4,425.00",Clearer Lead,5120859
BEIS,UKAEA,06/05/2022,Facilities,Other,740.00,SouthernsBroadstock Limited,5120861
BEIS,UKAEA,06/05/2022,Engineering Goods,Fusion,"2,135.00",Telonic Instruments Ltd,5120863
BEIS,UKAEA,06/05/2022,Fleet,Other,845.00,Rabbits Vehicle Hire,5120868
BEIS,UKAEA,06/05/2022,Hired Agency Staff - Rullion CMF/PO,Fusion,"8,762.04",Rullion Engineering Ltd,5120869
BEIS,UKAEA,06/05/2022,Hired Agency Staff - Rullion CMF/PO,Support Services,"8,241.00",Rullion Engineering Ltd,5120870
BEIS,UKAEA,06/05/2022,Engineering Goods,Fusion,"1,155.00",Igus UK Ltd,5120871
BEIS,UKAEA,06/05/2022,Personnel Related,Support Services,"1,390.00",Nafems Ltd,5120872
BEIS,UKAEA,06/05/2022,Hired Agency Staff - Rullion CMF/PO,Fusion,"4,875.00",Rullion Engineering Ltd,5120873
BEIS,UKAEA,06/05/2022,Hired Agency Staff - Rullion CMF/PO,Fusion,"2,965.83",Rullion Engineering Ltd,5120874
BEIS,UKAEA,06/05/2022,Hired Agency Staff - Rullion CMF/PO,Other,"8,077.50",Rullion Engineering Ltd,5120876
BEIS,UKAEA,06/05/2022,Engineering Goods,Other,543.15,Edwards Limited,5120881
BEIS,UKAEA,06/05/2022,Communications,Other,"8,375.00",Unexplored Films,5120884
BEIS,UKAEA,06/05/2022,Personnel Related,Other,655.00,Webrecruit,5120896
BEIS,UKAEA,06/05/2022,Personnel Related,Property,689.00,Webrecruit,5120897
BEIS,UKAEA,06/05/2022,Personnel Related,Support Services,"1,682.00",Webrecruit,5120897
BEIS,UKAEA,06/05/2022,Engineering Goods,Other,"12,600.00",Ossila Ltd,5120898
BEIS,UKAEA,06/05/2022,Professional Services,Fusion,"4,960.00",Allianz Engineering,5120899
BEIS,UKAEA,06/05/2022,Personnel Related,Support Services,706.56,People Asset Management Ltd,5120901
BEIS,UKAEA,06/05/2022,Engineering Goods,Other,"2,394.36",Tyler Bros (Sutton-in-Ashfield) Ltd.,5120905
BEIS,UKAEA,06/05/2022,Energy and Fuels,Fusion,"3,199.43",National Grid Plc,5120909
BEIS,UKAEA,06/05/2022,ICT,Fusion,"11,948.34",Sundry Supplier,5120910
BEIS,UKAEA,06/05/2022,ICT,Fusion,"1,120.00",Network Installation Solutions Ltd,5120914
BEIS,UKAEA,06/05/2022,ICT,Fusion,"9,261.09",Dell Corporation Ltd,5120915
BEIS,UKAEA,06/05/2022,Engineering Goods,Other,"2,912.50",Snelling Business Systems Limited,5120916
BEIS,UKAEA,06/05/2022,Personnel Related,Fusion,"1,290.00",Webrecruit,5120922
BEIS,UKAEA,06/05/2022,Professional Services,Fusion,"23,099.48",RCD Lockinge Ltd,5120927
BEIS,UKAEA,06/05/2022,Waste Management,Fusion,755.75,Grundon Waste Management Ltd,5120928
BEIS,UKAEA,06/05/2022,Engineering Goods,Fusion,690.00,GGR Group Ltd,5120931
BEIS,UKAEA,06/05/2022,Engineering Goods,Fusion,"3,796.85",MEMS Power Generation Limited,5120932
BEIS,UKAEA,06/05/2022,Engineering Goods,Fusion,"3,340.68",MEMS Power Generation Limited,5120933
BEIS,UKAEA,06/05/2022,Engineering Goods,Fusion,"4,140.13",MEMS Power Generation Limited,5120934
BEIS,UKAEA,06/05/2022,Engineering Goods,Fusion,"5,681.40",MEMS Power Generation Limited,5120935
BEIS,UKAEA,06/05/2022,Engineering Goods,Fusion,"2,060.52",MEMS Power Generation Limited,5120936
BEIS,UKAEA,06/05/2022,Engineering Goods,Fusion,"11,081.32",MEMS Power Generation Limited,5120937
BEIS,UKAEA,06/05/2022,Engineering Goods,Other,"5,646.45",Leybold UK Ltd,5120941
BEIS,UKAEA,06/05/2022,Facilities,Property,"6,233.52",SPIE Limited,5120945
BEIS,UKAEA,06/05/2022,Facilities,Property,"6,906.95",SPIE Limited,5120945
BEIS,UKAEA,06/05/2022,Facilities,Property,"9,002.69",SPIE Limited,5120945
BEIS,UKAEA,06/05/2022,Facilities,Property,"12,181.20",SPIE Limited,5120945
BEIS,UKAEA,06/05/2022,Facilities,Property,"14,183.68",SPIE Limited,5120945
BEIS,UKAEA,06/05/2022,Facilities,Fusion,"28,213.42",SPIE Limited,5120945
BEIS,UKAEA,06/05/2022,Facilities,Property,"28,564.99",SPIE Limited,5120945
BEIS,UKAEA,06/05/2022,Engineering Goods,Fusion,766.00,Precision Waterjet Ltd,5120949
BEIS,UKAEA,06/05/2022,Personnel Related,Fusion,773.00,Webrecruit,5120961
BEIS,UKAEA,06/05/2022,Engineering Goods,Other,"2,255.00",Prime Av Ltd,5120962
BEIS,UKAEA,06/05/2022,Learning and Development,Other,"2,595.00",Premier People Solutions T/A Premier Partnership,5120963
BEIS,UKAEA,06/05/2022,Engineering Goods,Fusion,572.00,B & M Engineers Ltd,5120964
BEIS,UKAEA,06/05/2022,Engineering Goods,Fusion,"11,773.40",Koppen & Lethem Ltd,5120965
BEIS,UKAEA,06/05/2022,Professional Services,Fusion,"28,060.47",RCD Lockinge Ltd,5120967
BEIS,UKAEA,06/05/2022,Hired Agency Staff - Rullion CMF/PO,Support Services,"5,389.65",Rullion Engineering Ltd,5120969
BEIS,UKAEA,06/05/2022,Professional Services,Property,"14,946.00",Burges Salmon,5120970
BEIS,UKAEA,06/05/2022,Hired Agency Staff - Rullion CMF/PO,Fusion,"9,463.52",Rullion Engineering Ltd,5120971
BEIS,UKAEA,06/05/2022,Hired Agency Staff - Rullion CMF/PO,Fusion,"9,153.65",Rullion Engineering Ltd,5120972
BEIS,UKAEA,06/05/2022,Engineering Goods,Other,639.20,Farnell Electronic Components Ltd,5120973
BEIS,UKAEA,06/05/2022,Facilities,Fusion,"1,183.70",HPC Engineering Plc,5120976
BEIS,UKAEA,06/05/2022,Facilities,Fusion,557.57,HPC Engineering Plc,5120977
BEIS,UKAEA,06/05/2022,Facilities,Fusion,907.13,HPC Engineering Plc,5120978
BEIS,UKAEA,06/05/2022,Facilities,Fusion,"1,637.00",HPC Engineering Plc,5120980
BEIS,UKAEA,06/05/2022,ICT,Statement of Financial Position,"15,681.35",Dell Corporation Ltd,5120981
BEIS,UKAEA,06/05/2022,ICT,Fusion,"1,314.58",Dell Corporation Ltd,5120982
BEIS,UKAEA,12/05/2022,Engineering Goods,Other,"115,327.62",NORTEMECANICA S.A,5120983
BEIS,UKAEA,06/05/2022,Engineering Goods,Fusion,"1,150.22",Gee Graphite Ltd,5120984
BEIS,UKAEA,06/05/2022,Engineering Goods,Other,517.20,Capital Refractories Ltd.,5120985
BEIS,UKAEA,06/05/2022,Learning and Development,Support Services,"3,000.00",Secure Sundry Supplier,5120988
BEIS,UKAEA,06/05/2022,Construction,Property,690.75,Baxter Storey Ltd.,5120989
BEIS,UKAEA,06/05/2022,Construction,Property,"29,864.29",Baxter Storey Ltd.,5120990
BEIS,UKAEA,06/05/2022,Construction,Property,"97,934.44",Baxter Storey Ltd.,5120991
BEIS,UKAEA,06/05/2022,Construction,Property,"2,370.00",Baxter Storey Ltd.,5120992
BEIS,UKAEA,06/05/2022,Engineering Goods,Fusion,"1,656.00",Sundry Supplier,5120994
BEIS,UKAEA,06/05/2022,Energy and Fuels,Property,"1,476.68",EDF Energy,5120995
BEIS,UKAEA,06/05/2022,Energy and Fuels,Property,599.93,EDF Energy,5120996
BEIS,UKAEA,06/05/2022,Energy and Fuels,Fusion,"14,306.53",EDF Energy,5120997
BEIS,UKAEA,06/05/2022,Energy and Fuels,Property,"44,721.62",EDF Energy,5120998
BEIS,UKAEA,06/05/2022,Energy and Fuels,Property,"1,785.97",EDF Energy,5120999
BEIS,UKAEA,06/05/2022,Hired Agency Staff - Rullion CMF/PO,Support Services,"4,635.00",Rullion Engineering Ltd,5121000
BEIS,UKAEA,06/05/2022,Engineering Goods,Property,"1,124.61",Manutan UK Limited,5121003
BEIS,UKAEA,06/05/2022,Professional Services,Support Services,"1,130.30",Hydrock Consultants Ltd,5121004
BEIS,UKAEA,06/05/2022,Engineering Goods,Fusion,"2,230.00",Acrona Engineering Ltd,5121010
BEIS,UKAEA,06/05/2022,Engineering Goods,Other,"13,840.24",MCT Brattberg Ltd,5121011
BEIS,UKAEA,06/05/2022,Energy and Fuels,Property,"43,404.13",EDF Energy,5121012
BEIS,UKAEA,06/05/2022,Energy and Fuels,Property,530.50,EDF Energy,5121013
BEIS,UKAEA,06/05/2022,Energy and Fuels,Property,"4,273.09",EDF Energy,5121015
BEIS,UKAEA,06/05/2022,Energy and Fuels,Property,"40,523.12",EDF Energy,5121016
BEIS,UKAEA,06/05/2022,Energy and Fuels,Property,"4,344.88",EDF Energy,5121018
BEIS,UKAEA,06/05/2022,Energy and Fuels,Property,"6,002.95",EDF Energy,5121019
BEIS,UKAEA,06/05/2022,Energy and Fuels,Property,"8,894.04",EDF Energy,5121020
BEIS,UKAEA,06/05/2022,Energy and Fuels,Property,"2,544.74",EDF Energy,5121022
BEIS,UKAEA,06/05/2022,Energy and Fuels,Property,"3,693.44",EDF Energy,5121023
BEIS,UKAEA,06/05/2022,Facilities,Property,528.00,Baxter Storey Ltd.,5121024
BEIS,UKAEA,06/05/2022,Engineering Goods,Other,"16,000.00",Innerspec Technologies UK Ltd.,5121025
BEIS,UKAEA,06/05/2022,Professional Services,Fusion,"1,156.50",British Engineering Services Ltd,5121026
BEIS,UKAEA,06/05/2022,Learning and Development,Support Services,550.00,Premier People Solutions T/A Premier Partnership,5121029
BEIS,UKAEA,06/05/2022,Learning and Development,Support Services,895.00,Premier People Solutions T/A Premier Partnership,5121030
BEIS,UKAEA,06/05/2022,Professional Services,Property,"2,990.00",BSP Consulting,5121033
BEIS,UKAEA,06/05/2022,Logistics and Shipping,Fusion,680.00,Machowie Transport Ltd,5121035
BEIS,UKAEA,06/05/2022,ICT,Support Services,"1,117.46",British Telecommunications plc - VOIP Services,5121040
BEIS,UKAEA,06/05/2022,ICT,Support Services,"1,708.10",British Telecommunications plc - VOIP Services,5121041
BEIS,UKAEA,09/05/2022,Facilities,Property,"2,363.20",Oxford Innovation Ltd.,5121042
BEIS,UKAEA,11/05/2022,Hired Agency Staff - Rullion CMF/PO,Fusion,"4,860.51",Rullion Engineering Ltd,5121046
BEIS,UKAEA,11/05/2022,Hired Agency Staff - Rullion CMF/PO,Fusion,"1,551.00",Rullion Engineering Ltd,5121049
BEIS,UKAEA,09/05/2022,Engineering Goods,Fusion,"1,260.00",B & M Engineers Ltd,5121050
BEIS,UKAEA,09/05/2022,Engineering Goods,Fusion,"3,415.10",PR Electronics (UK) Ltd,5121055
BEIS,UKAEA,09/05/2022,Learning and Development,Other,"1,600.00",Premier People Solutions T/A Premier Partnership,5121064
BEIS,UKAEA,09/05/2022,Professional Services,Property,670.00,Carter Jonas LLP,5121065
BEIS,UKAEA,09/05/2022,Professional Services,Fusion,550.00,Carter Jonas LLP,5121068
BEIS,UKAEA,11/05/2022,Professional Services,Fusion,"2,514.70",Jacobs Clean Energy Ltd - GBP,5121069
BEIS,UKAEA,11/05/2022,Facilities,Property,"6,234.26",Jacobs Clean Energy Ltd - GBP,5121070
BEIS,UKAEA,11/05/2022,Hired Agency Staff - Rullion CMF/PO,Support Services,"5,922.00",Rullion Engineering Ltd,5121072
BEIS,UKAEA,09/05/2022,Personnel Related,Support Services,"2,105.17",Compass Contract Services (UK) Ltd,5121073
BEIS,UKAEA,09/05/2022,Professional Services,Support Services,"8,250.00",Burges Salmon,5121074
BEIS,UKAEA,11/05/2022,Hired Agency Staff - Rullion CMF/PO,Fusion,"2,824.39",Rullion Engineering Ltd,5121075
BEIS,UKAEA,09/05/2022,Engineering Goods,Fusion,869.87,Budget Forktrucks Ltd,5121080
BEIS,UKAEA,09/05/2022,Fleet,Other,615.33,Budget Forktrucks Ltd,5121082
BEIS,UKAEA,11/05/2022,Hired Agency Staff - Rullion CMF/PO,Other,"6,382.52",Rullion Engineering Ltd,5121083
BEIS,UKAEA,11/05/2022,Hired Agency Staff - Rullion CMF/PO,Other,"1,962.38",Rullion Engineering Ltd,5121084
BEIS,UKAEA,11/05/2022,Hired Agency Staff - Rullion CMF/PO,Other,"6,382.52",Rullion Engineering Ltd,5121085
BEIS,UKAEA,11/05/2022,Hired Agency Staff - Rullion CMF/PO,Other,"7,537.52",Rullion Engineering Ltd,5121086
BEIS,UKAEA,11/05/2022,Hired Agency Staff - Rullion CMF/PO,Other,"7,565.35",Rullion Engineering Ltd,5121087
BEIS,UKAEA,11/05/2022,Hired Agency Staff - Rullion CMF/PO,Other,"5,111.47",Rullion Engineering Ltd,5121088
BEIS,UKAEA,09/05/2022,Waste Management,Other,"4,537.65",OHES Environmental Ltd,5121093
BEIS,UKAEA,09/05/2022,Engineering Goods,Fusion,808.40,Wika Instruments Ltd,5121097
BEIS,UKAEA,09/05/2022,Professional Services,Support Services,"9,208.36",Sellafield Ltd,5121098
BEIS,UKAEA,09/05/2022,Engineering Goods,Fusion,762.30,RS Components Ltd,5121103
BEIS,UKAEA,09/05/2022,Engineering Goods,Fusion,525.00,Trescal Limited,5121104
BEIS,UKAEA,09/05/2022,Professional Services,Property,"2,057.50",Carter Jonas LLP,5121106
BEIS,UKAEA,09/05/2022,Engineering Goods,Fusion,715.00,LTI Metaltech Limited,5121110
BEIS,UKAEA,09/05/2022,Energy and Fuels,Fusion,"309,543.24",EDF Energy,5121117
BEIS,UKAEA,11/05/2022,Hired Agency Staff - Rullion CMF/PO,Fusion,"4,121.44",Rullion Engineering Ltd,5121119
BEIS,UKAEA,11/05/2022,Professional Services,Support Services,"26,033.56",The Copyright Licensing Agency Limi,5121121
BEIS,UKAEA,11/05/2022,Logistics and Shipping,Property,"5,702.00",Sundry Supplier,5121122
BEIS,UKAEA,11/05/2022,Learning and Development,Fusion,710.00,ROSPA,5121123
BEIS,UKAEA,11/05/2022,Learning and Development,Fusion,710.00,ROSPA,5121124
BEIS,UKAEA,11/05/2022,Professional Services,Other,"6,900.00",Amber Integrated Controls & Automation Ltd.,5121125
BEIS,UKAEA,11/05/2022,Hired Agency Staff - Rullion CMF/PO,Fusion,571.50,Rullion Engineering Ltd,5121126
BEIS,UKAEA,13/05/2022,Engineering Goods,Fusion,"3,978.78",Rubiklin Kft,5121127
BEIS,UKAEA,11/05/2022,ICT,Other,"15,000.00",Planit Software Ltd.,5121128
BEIS,UKAEA,11/05/2022,Hired Agency Staff - Rullion CMF/PO,Support Services,"8,646.00",Rullion Engineering Ltd,5121133
BEIS,UKAEA,11/05/2022,Engineering Goods,Fusion,675.01,RS Components Ltd,5121136
BEIS,UKAEA,11/05/2022,Hired Agency Staff - Rullion CMF/PO,Support Services,"11,969.74",Rullion Engineering Ltd,5121137
BEIS,UKAEA,11/05/2022,Research,Fusion,"3,500.00",Strathclyde University,5121140
BEIS,UKAEA,11/05/2022,Research,Fusion,"6,463.99",University Of Birmingham,5121141
BEIS,UKAEA,11/05/2022,Research,Fusion,"3,562.50",Imperial College London - GBP,5121145
BEIS,UKAEA,11/05/2022,Engineering Goods,Other,"28,363.67",James Fisher Nuclear Limited,5121146
BEIS,UKAEA,11/05/2022,Hired Agency Staff - Rullion CMF/PO,Other,"4,939.11",Rullion Engineering Ltd,5121148
BEIS,UKAEA,11/05/2022,ICT,Statement of Financial Position,"1,371.00",Mirror Consulting Ltd,5121151
BEIS,UKAEA,11/05/2022,ICT,Other,"1,822.58",Millgate Limited,5121152
BEIS,UKAEA,13/05/2022,Engineering Goods,Fusion,"2,366.75",Holland Shielding Systems B.V.,5121154
BEIS,UKAEA,11/05/2022,Fleet,Fusion,840.00,Rabbits Vehicle Hire,5121157
BEIS,UKAEA,11/05/2022,Professional Services,Fusion,"1,036.00",Hydroblast,5121158
BEIS,UKAEA,11/05/2022,Hired Agency Staff - Rullion CMF/PO,Fusion,"12,327.59",Rullion Engineering Ltd,5121161
BEIS,UKAEA,13/05/2022,Engineering Goods,Support Services,"4,197.10",Beryllium Science & Technology Association aisbl,5121162
BEIS,UKAEA,11/05/2022,Engineering Goods,Fusion,970.00,RS Components Ltd,5121163
BEIS,UKAEA,11/05/2022,Facilities,Other,939.00,Sundry Supplier,5121167
BEIS,UKAEA,11/05/2022,Office Solutions,Fusion,896.00,IOP Publishing Ltd - GBP,5121168
BEIS,UKAEA,11/05/2022,Professional Services,Fusion,"4,187.63",Pelican Software Ltd,5121170
BEIS,UKAEA,11/05/2022,Learning and Development,Fusion,"3,000.00",Technia Ltd,5121171
BEIS,UKAEA,11/05/2022,Facilities,Fusion,"2,600.00",HPC Engineering Plc,5121172
BEIS,UKAEA,11/05/2022,Professional Services,Property,"4,756.00",Glanville Consultants,5121174
BEIS,UKAEA,11/05/2022,Engineering Goods,Other,"1,976.72",RS Components Ltd,5121177
BEIS,UKAEA,11/05/2022,Learning and Development,Support Services,"1,472.00",Bridgwater & Taunton College,5121184
BEIS,UKAEA,13/05/2022,Engineering Goods,Fusion,813.39,KLEIBER Infrared Gmbh,5121188
BEIS,UKAEA,11/05/2022,Operational Goods,Fusion,848.00,Arco Ltd,5121196
BEIS,UKAEA,11/05/2022,Engineering Goods,Fusion,"1,578.97",RS Components Ltd,5121206
BEIS,UKAEA,11/05/2022,Hired Agency Staff - Rullion CMF/PO,Support Services,"3,541.12",Rullion Engineering Ltd,5121212
BEIS,UKAEA,11/05/2022,Professional Services,Fusion,"83,145.00",University of York - GBP,5121213
BEIS,UKAEA,11/05/2022,Hired Agency Staff - Rullion CMF/PO,Fusion,"2,877.00",Rullion Engineering Ltd,5121214
BEIS,UKAEA,11/05/2022,Engineering Goods,Fusion,"34,950.00",Raddec International Ltd,5121215
BEIS,UKAEA,11/05/2022,Professional Services,Support Services,"8,570.47",Ridge And Partners Llp,5121216
BEIS,UKAEA,11/05/2022,Professional Services,Fusion,"11,895.26",Atkins Ltd,5121217
BEIS,UKAEA,11/05/2022,ICT,Fusion,"5,697.15",The Macintosh Consultancy Ltd,5121226
BEIS,UKAEA,11/05/2022,Engineering Goods,Other,768.45,Swagelok London,5121227
BEIS,UKAEA,11/05/2022,Engineering Goods,Fusion,502.00,Pfeiffer Vacuum UK,5121228
BEIS,UKAEA,11/05/2022,Engineering Goods,Other,"19,828.69",Thermic Edge Limited,5121230
BEIS,UKAEA,11/05/2022,Construction,Other,"17,870.17",McLaughlin & Harvey Ltd,5121231
BEIS,UKAEA,11/05/2022,Construction,Other,"39,052.14",McLaughlin & Harvey Ltd,5121231
BEIS,UKAEA,11/05/2022,Engineering Goods,Other,600.94,Underwoods Electrical Distributors,5121233
BEIS,UKAEA,11/05/2022,Facilities,Property,"2,039.37",OCS Group UK Ltd,5121234
BEIS,UKAEA,11/05/2022,Facilities,Property,731.46,OCS Group UK Ltd,5121235
BEIS,UKAEA,11/05/2022,Facilities,Fusion,902.11,OCS Group UK Ltd,5121235
BEIS,UKAEA,11/05/2022,Facilities,Property,"1,288.21",OCS Group UK Ltd,5121235
BEIS,UKAEA,11/05/2022,Hired Agency Staff - Rullion CMF/PO,Other,"3,908.26",Rullion Engineering Ltd,5121236
BEIS,UKAEA,11/05/2022,Facilities,Property,"5,460.78",OCS Group UK Ltd,5121237
BEIS,UKAEA,11/05/2022,Facilities,Fusion,"16,569.96",OCS Group UK Ltd,5121237
BEIS,UKAEA,11/05/2022,Facilities,Property,"22,532.39",OCS Group UK Ltd,5121237
BEIS,UKAEA,11/05/2022,Employee CPS Pension Contributions Payable,Statement of Financial Position,"456,353.37",Paymaster (1836) Ltd Re: UKAEA Pension Scheme,5121238
BEIS,UKAEA,11/05/2022,Employers CPS Pension Contributions Payable,Statement of Financial Position,"1,181,888.07",Paymaster (1836) Ltd Re: UKAEA Pension Scheme,5121238
BEIS,UKAEA,11/05/2022,Statutory Maternity Pay Receivable,Statement of Financial Position,"-17,544.84",HMRC Cumbernauld - Payroll,5121239
BEIS,UKAEA,11/05/2022,Employees NIC Payable,Statement of Financial Position,"579,649.86",HMRC Cumbernauld - Payroll,5121239
BEIS,UKAEA,11/05/2022,Employers NIC Payable,Statement of Financial Position,"745,270.05",HMRC Cumbernauld - Payroll,5121239
BEIS,UKAEA,11/05/2022,PAYE Payable,Statement of Financial Position,"970,087.64",HMRC Cumbernauld - Payroll,5121239
BEIS,UKAEA,11/05/2022,Facilities,Property,-780.92,OCS Group UK Ltd,5121240
BEIS,UKAEA,11/05/2022,Engineering Goods,Fusion,"2,068.70",Photonic Solutions Plc,5121241
BEIS,UKAEA,11/05/2022,ICT,Fusion,"1,455.34",Siemens Industry Software Limited,5121242
BEIS,UKAEA,11/05/2022,Professional Services,Other,"3,339.00",TWI Ltd,5121246
BEIS,UKAEA,11/05/2022,Engineering Goods,Fusion,"5,650.00",North Star Imaging UK,5121247
BEIS,UKAEA,11/05/2022,Engineering Goods,Fusion,"2,038.74",RS Components Ltd,5121248
BEIS,UKAEA,11/05/2022,Learning and Development,Support Services,"1,500.00",The Gender Speaker,5121250
BEIS,UKAEA,11/05/2022,Engineering Goods,Fusion,"2,565.00",Qmx Laboratories Ltd,5121252
BEIS,UKAEA,11/05/2022,Office Solutions,Fusion,737.50,Zuna Web Limited,5121255
BEIS,UKAEA,11/05/2022,Engineering Goods,Fusion,"1,307.78",Swagelok London,5121256
BEIS,UKAEA,11/05/2022,Professional Services,Support Services,"1,230.00",Keoghs,5121257
BEIS,UKAEA,11/05/2022,Engineering Goods,Fusion,591.00,Acrona Engineering Ltd,5121270
BEIS,UKAEA,13/05/2022,Engineering Goods,Fusion,587.24,MTSA Technopower B.V.,5121271
BEIS,UKAEA,13/05/2022,Engineering Goods,Fusion,587.24,MTSA Technopower B.V.,5121271
BEIS,UKAEA,11/05/2022,Engineering Goods,Fusion,927.39,Ind-Tech Ltd,5121272
BEIS,UKAEA,11/05/2022,Professional Services,Property,"5,077.50",Carter Jonas LLP,5121275
BEIS,UKAEA,11/05/2022,Professional Services,Property,"34,000.00",McBains Ltd,5121278
BEIS,UKAEA,11/05/2022,Professional Services,Other,"2,850.00",Jonathan Kettridge Associates Limited,5121279
BEIS,UKAEA,11/05/2022,ICT,Fusion,"2,995.95",Farnell Electronic Components Ltd,5121281
BEIS,UKAEA,11/05/2022,Professional Services,Fusion,956.86,Magnox Ltd,5121284
BEIS,UKAEA,11/05/2022,Professional Services,Fusion,"5,630.00",McBains Ltd,5121285
BEIS,UKAEA,11/05/2022,Professional Services,Fusion,"2,973.50",McBains Ltd,5121286
BEIS,UKAEA,11/05/2022,Personnel Related,Support Services,500.00,Sundry Supplier,5121287
BEIS,UKAEA,11/05/2022,Engineering Goods,Fusion,"1,235.40",RS Components Ltd,5121288
BEIS,UKAEA,11/05/2022,Engineering Goods,Property,"1,157.35",City Electrical Factors,5121294
BEIS,UKAEA,11/05/2022,Construction,Other,680.00,Anixter UK Ltd,5121295
BEIS,UKAEA,11/05/2022,Engineering Goods,Fusion,"4,095.00",Sundry Supplier,5121296
BEIS,UKAEA,11/05/2022,Facilities,Fusion,"5,152.32",BAM FM Ltd,5121300
BEIS,UKAEA,11/05/2022,Engineering Goods,Fusion,"1,700.00",Farnell Electronic Components Ltd,5121303
BEIS,UKAEA,11/05/2022,Engineering Goods,Fusion,996.94,Farnell Electronic Components Ltd,5121304
BEIS,UKAEA,11/05/2022,Engineering Goods,Fusion,"1,116.00",Farnell Electronic Components Ltd,5121308
BEIS,UKAEA,11/05/2022,Engineering Goods,Fusion,"1,581.43",Farnell Electronic Components Ltd,5121309
BEIS,UKAEA,16/05/2022,Facilities,Property,"2,443.75",Baxter Storey Ltd.,5121311
BEIS,UKAEA,16/05/2022,Facilities,Property,"2,706.87",Baxter Storey Ltd.,5121312
BEIS,UKAEA,11/05/2022,Engineering Goods,Fusion,"10,175.51",Jacobs Clean Energy Ltd - GBP,5121313
BEIS,UKAEA,11/05/2022,Engineering Goods,Fusion,"18,209.09",Jacobs Clean Energy Ltd - GBP,5121313
BEIS,UKAEA,11/05/2022,Engineering Goods,Fusion,"21,732.22",Jacobs Clean Energy Ltd - GBP,5121313
BEIS,UKAEA,11/05/2022,Engineering Goods,Fusion,"40,022.97",Jacobs Clean Energy Ltd - GBP,5121313
BEIS,UKAEA,11/05/2022,Engineering Goods,Fusion,"40,090.92",Jacobs Clean Energy Ltd - GBP,5121313
BEIS,UKAEA,11/05/2022,Engineering Goods,Fusion,"59,454.81",Jacobs Clean Energy Ltd - GBP,5121313
BEIS,UKAEA,11/05/2022,Engineering Goods,Fusion,"114,322.87",Jacobs Clean Energy Ltd - GBP,5121313
BEIS,UKAEA,11/05/2022,Engineering Goods,Fusion,"246,481.82",Jacobs Clean Energy Ltd - GBP,5121313
BEIS,UKAEA,11/05/2022,Professional Services,Fusion,"303,581.43",Jacobs Clean Energy Ltd - GBP,5121313
BEIS,UKAEA,16/05/2022,Facilities,Property,"10,875.88",Baxter Storey Ltd.,5121314
BEIS,UKAEA,16/05/2022,Facilities,Property,"1,430.67",Baxter Storey Ltd.,5121315
BEIS,UKAEA,16/05/2022,Facilities,Other,"1,748.00",Securitas Security Services,5121316
BEIS,UKAEA,16/05/2022,Construction,Property,"76,155.15",Baxter Storey Ltd.,5121317
BEIS,UKAEA,16/05/2022,Facilities,Property,"7,816.35",Baxter Storey Ltd.,5121318
BEIS,UKAEA,16/05/2022,Facilities,Property,"6,645.37",Baxter Storey Ltd.,5121319
BEIS,UKAEA,25/05/2022,Facilities,Property,"1,254.50",Castle Water Ltd,5121320
BEIS,UKAEA,16/05/2022,Engineering Goods,Fusion,"4,329.02",Tekdata Interconnections Ltd,5121321
BEIS,UKAEA,16/05/2022,Engineering Goods,Fusion,"1,704.66",Tekdata Interconnections Ltd,5121322
BEIS,UKAEA,16/05/2022,Professional Services,Property,"1,500.00",Ridge And Partners Llp,5121325
BEIS,UKAEA,18/05/2022,Construction,Support Services,"7,517.30",Doosan Babcock Ltd.,5121327
BEIS,UKAEA,16/05/2022,Engineering Goods,Fusion,"16,800.00",Telonic Instruments Ltd,5121328
BEIS,UKAEA,16/05/2022,Personnel Related,Other,840.00,Webrecruit,5121329
BEIS,UKAEA,16/05/2022,Engineering Goods,Fusion,"10,377.00",R Baker Electrical Ltd,5121330
BEIS,UKAEA,16/05/2022,Operational Goods,Fusion,586.08,Arco Ltd,5121340
BEIS,UKAEA,16/05/2022,Facilities,Property,"3,973.71",Baxter Storey Ltd.,5121345
BEIS,UKAEA,16/05/2022,Energy and Fuels,Property,833.00,SMS Energy Services Ltd,5121355
BEIS,UKAEA,16/05/2022,Professional Services,Property,"1,275.00",Ridge And Partners Llp,5121356
BEIS,UKAEA,16/05/2022,Engineering Goods,Other,810.00,Pycko Scientific Limited,5121361
BEIS,UKAEA,18/05/2022,Hired Agency Staff - Rullion CMF/PO,Other,"6,773.28",Rullion Engineering Ltd,5121363
BEIS,UKAEA,13/05/2022,Office Solutions,Fusion,"2,026.67",IOP Publishing Ltd - EUR,5121364
BEIS,UKAEA,13/05/2022,Office Solutions,Fusion,"1,041.67",IOP Publishing Ltd - EUR,5121365
BEIS,UKAEA,13/05/2022,Office Solutions,Fusion,"1,770.83",IOP Publishing Ltd - EUR,5121366
BEIS,UKAEA,13/05/2022,Office Solutions,Fusion,"1,041.67",IOP Publishing Ltd - EUR,5121367
BEIS,UKAEA,13/05/2022,Office Solutions,Fusion,"1,920.00",IOP Publishing Ltd - EUR,5121368
BEIS,UKAEA,13/05/2022,Office Solutions,Fusion,"1,280.00",IOP Publishing Ltd - EUR,5121369
BEIS,UKAEA,18/05/2022,Hired Agency Staff - Rullion CMF/PO,Fusion,"3,992.70",Rullion Engineering Ltd,5121370
BEIS,UKAEA,18/05/2022,Hired Agency Staff - Rullion CMF/PO,Fusion,"3,513.90",Rullion Engineering Ltd,5121372
BEIS,UKAEA,18/05/2022,Hired Agency Staff - Rullion CMF/PO,Fusion,"12,451.62",Rullion Engineering Ltd,5121375
BEIS,UKAEA,16/05/2022,Facilities,Fusion,883.33,HPC Engineering Plc,5121381
BEIS,UKAEA,16/05/2022,Professional Services,Property,"1,500.00",Ridge And Partners Llp,5121382
BEIS,UKAEA,18/05/2022,Hired Agency Staff - Rullion CMF/PO,Fusion,"4,539.00",Rullion Engineering Ltd,5121386
BEIS,UKAEA,16/05/2022,ICT,Fusion,966.95,Oracle Corporation UK Limited,5121389
BEIS,UKAEA,16/05/2022,Personnel Related,Support Services,850.00,Webrecruit,5121390
BEIS,UKAEA,16/05/2022,Personnel Related,Fusion,"2,219.00",Webrecruit,5121392
BEIS,UKAEA,16/05/2022,Engineering Goods,Fusion,"1,370.16",Sundry Supplier,5121394
BEIS,UKAEA,18/05/2022,Hired Agency Staff - Rullion CMF/PO,Other,"1,025.43",Rullion Engineering Ltd,5121405
BEIS,UKAEA,18/05/2022,Professional Services,Support Services,"1,330.37",Nuvia Limited,5121408
BEIS,UKAEA,18/05/2022,Professional Services,Support Services,"2,973.94",Nuvia Limited,5121408
BEIS,UKAEA,16/05/2022,Engineering Goods,Fusion,"2,040.00",Faringdon Precision Engineering Limited,5121409
BEIS,UKAEA,16/05/2022,Professional Services,Property,"10,260.94",Ridge And Partners Llp,5121410
BEIS,UKAEA,19/05/2022,Engineering Goods,Other,590.91,Fiberstore Ltd,5121413
BEIS,UKAEA,16/05/2022,Professional Services,Other,"83,812.50",Environment Agency,5121414
BEIS,UKAEA,16/05/2022,Engineering Goods,Fusion,"7,010.00",Laser 2000 UK Ltd - GBP,5121418
BEIS,UKAEA,16/05/2022,Engineering Goods,Fusion,"7,803.00",Laser 2000 UK Ltd - GBP,5121419
BEIS,UKAEA,16/05/2022,Engineering Goods,Fusion,"-36,991.50",Hiden Analytical Ltd,5121421
BEIS,UKAEA,16/05/2022,Engineering Goods,Fusion,"89,836.50",Hiden Analytical Ltd,5121421
BEIS,UKAEA,16/05/2022,Professional Services,Other,"4,550.00",Burges Salmon,5121422
BEIS,UKAEA,16/05/2022,Professional Services,Fusion,"5,840.00",Burges Salmon,5121422
BEIS,UKAEA,16/05/2022,ICT,Support Services,"26,000.00",Cinos Limited,5121425
BEIS,UKAEA,18/05/2022,Facilities,Property,"4,102.54",SPIE Limited,5121426
BEIS,UKAEA,16/05/2022,Energy and Fuels,Fusion,"27,223.78",EDF Energy,5121427
BEIS,UKAEA,18/05/2022,Facilities,Property,"98,669.44",Associated Asphalt Contracting Ltd,5121428
BEIS,UKAEA,18/05/2022,Facilities,Property,"170,663.97",Associated Asphalt Contracting Ltd,5121428
BEIS,UKAEA,16/05/2022,Engineering Goods,Fusion,699.78,Border Technology Ltd,5121433
BEIS,UKAEA,16/05/2022,Travel,Fusion,"1,890.80",Compass Contract Services (UK) Ltd,5121444
BEIS,UKAEA,16/05/2022,Communications,Other,"4,899.76",The Village Films,5121445
BEIS,UKAEA,16/05/2022,Personnel Related,Other,"2,009.70",Easyfairs UK Ltd,5121446
BEIS,UKAEA,16/05/2022,Travel,Other,"1,339.80",Easyfairs UK Ltd,5121447
BEIS,UKAEA,20/05/2022,Engineering Goods,Fusion,"17,381.59",Zoz GmbH,5121448
BEIS,UKAEA,16/05/2022,Engineering Goods,Fusion,"9,183.55",Torr Scientific Ltd,5121450
BEIS,UKAEA,16/05/2022,Professional Services,Property,850.00,Carter Jonas LLP,5121451
BEIS,UKAEA,16/05/2022,Professional Services,Property,"1,400.00",Carter Jonas LLP,5121453
BEIS,UKAEA,16/05/2022,Professional Services,Property,850.00,Carter Jonas LLP,5121454
BEIS,UKAEA,16/05/2022,Professional Services,Property,"1,200.00",Carter Jonas LLP,5121455
BEIS,UKAEA,18/05/2022,Hired Agency Staff - Rullion CMF/PO,Support Services,"3,392.06",Rullion Engineering Ltd,5121457
BEIS,UKAEA,18/05/2022,Personnel Related,Other,549.81,Nuvia Limited,5121468
BEIS,UKAEA,18/05/2022,Personnel Related,Fusion,"14,009.77",Nuvia Limited,5121468
BEIS,UKAEA,18/05/2022,Hired Agency Staff - Rullion CMF/PO,Support Services,"8,037.00",Rullion Engineering Ltd,5121479
BEIS,UKAEA,18/05/2022,Engineering Goods,Other,"1,034.00",Troax UK Ltd,5121486
BEIS,UKAEA,16/05/2022,Office Solutions,Fusion,"4,816.58",OASIS Group,5121491
BEIS,UKAEA,25/05/2022,Engineering Goods,Fusion,"-18,570.86",BOC Ltd,5121496
BEIS,UKAEA,16/05/2022,Engineering Goods,Fusion,"16,800.00",Telonic Instruments Ltd,5121502
BEIS,UKAEA,16/05/2022,Learning and Development,Support Services,"1,785.00",Synergie Training,5121509
BEIS,UKAEA,16/05/2022,Engineering Goods,Fusion,"4,062.40",Underwoods Electrical Distributors,5121513
BEIS,UKAEA,16/05/2022,Learning and Development,Other,"1,786.00",Speedy Asset Services Limited,5121515
BEIS,UKAEA,16/05/2022,Research,Fusion,"1,687.50",Imperial College London - GBP,5121516
BEIS,UKAEA,16/05/2022,Engineering Goods,Fusion,"1,248.90",Telonic Instruments Ltd,5121521
BEIS,UKAEA,16/05/2022,Engineering Goods,Fusion,941.42,Swagelok London,5121522
BEIS,UKAEA,19/05/2022,Professional Services,Fusion,"12,256.13",NRB SA,5121526
BEIS,UKAEA,16/05/2022,Communications,Other,797.50,True Mobility Ltd,5121527
BEIS,UKAEA,16/05/2022,Communications,Support Services,797.50,True Mobility Ltd,5121527
BEIS,UKAEA,16/05/2022,Engineering Goods,Other,"46,965.50",Hiden Analytical Ltd,5121529
BEIS,UKAEA,18/05/2022,Facilities,Property,676.07,SPIE Limited,5121530
BEIS,UKAEA,16/05/2022,Engineering Goods,Fusion,"2,517.36",MF Hydraulics Ltd,5121533
BEIS,UKAEA,16/05/2022,Operational Goods,Other,"3,675.20",Arco Ltd,5121534
BEIS,UKAEA,16/05/2022,Professional Services,Fusion,"10,000.00",Atkins Ltd,5121536
BEIS,UKAEA,16/05/2022,Professional Services,Fusion,"9,000.32",Atkins Ltd,5121537
BEIS,UKAEA,18/05/2022,Facilities,Other,"15,997.86",Jacobs Clean Energy Ltd - GBP,5121538
BEIS,UKAEA,16/05/2022,Engineering Goods,Fusion,648.89,Pilz Automation Technology,5121540
BEIS,UKAEA,16/05/2022,Professional Services,Property,"1,500.00",Glanville Consultants,5121541
BEIS,UKAEA,16/05/2022,Engineering Goods,Fusion,"1,960.00",Astec IT Solutions Ltd,5121542
BEIS,UKAEA,18/05/2022,Hired Agency Staff - Rullion CMF/PO,Fusion,"8,289.38",Rullion Engineering Ltd,5121543
BEIS,UKAEA,18/05/2022,Construction,Support Services,"22,660.86",Doosan Babcock Ltd.,5121547
BEIS,UKAEA,16/05/2022,Professional Services,Fusion,"2,258.92",RCD Lockinge Ltd,5121548
BEIS,UKAEA,16/05/2022,Engineering Goods,Fusion,"1,624.08",Rittal Limited,5121550
BEIS,UKAEA,16/05/2022,Engineering Goods,Fusion,"2,647.85",Rittal Limited,5121552
BEIS,UKAEA,16/05/2022,Research,Fusion,"4,000.00",University College London,5121553
BEIS,UKAEA,16/05/2022,Personnel Related,Support Services,"1,000.00",Public Chairs' Forum,5121554
BEIS,UKAEA,18/05/2022,Hired Agency Staff - Rullion CMF/PO,Support Services,"11,494.80",Rullion Engineering Ltd,5121556
BEIS,UKAEA,18/05/2022,Hired Agency Staff - Rullion CMF/PO,Support Services,"9,930.95",Rullion Engineering Ltd,5121559
BEIS,UKAEA,16/05/2022,Engineering Goods,Property,"23,330.45",R&B Switchgear Services Ltd,5121560
BEIS,UKAEA,16/05/2022,Engineering Goods,Property,"13,015.03",R&B Switchgear Services Ltd,5121561
BEIS,UKAEA,16/05/2022,Engineering Goods,Property,"23,330.45",R&B Switchgear Services Ltd,5121562
BEIS,UKAEA,16/05/2022,Engineering Goods,Property,"18,477.39",R&B Switchgear Services Ltd,5121563
BEIS,UKAEA,25/05/2022,Engineering Goods,Fusion,"1,159.90",BOC Ltd,5121564
BEIS,UKAEA,25/05/2022,Engineering Goods,Fusion,"3,900.00",BOC Ltd,5121565
BEIS,UKAEA,25/05/2022,Engineering Goods,Fusion,"3,158.51",BOC Ltd,5121566
BEIS,UKAEA,25/05/2022,Engineering Goods,Fusion,810.16,BOC Ltd,5121578
BEIS,UKAEA,16/05/2022,Engineering Goods,Fusion,"1,032.15",Factair Ltd,5121579
BEIS,UKAEA,16/05/2022,Facilities,Fusion,604.02,Reece Safety Products Ltd,5121580
BEIS,UKAEA,16/05/2022,Office Solutions,Support Services,"24,800.00",printMAX Limited,5121583
BEIS,UKAEA,16/05/2022,Engineering Goods,Fusion,"1,491.00",Life Safety Distribution GmbH,5121589
BEIS,UKAEA,19/05/2022,Engineering Goods,Other,"10,983.10",Tech Weld I Blekinge AB,5121591
BEIS,UKAEA,19/05/2022,Engineering Goods,Other,"11,793.62",Tech Weld I Blekinge AB,5121592
BEIS,UKAEA,19/05/2022,Engineering Goods,Other,"6,932.86",Tech Weld I Blekinge AB,5121593
BEIS,UKAEA,19/05/2022,Engineering Goods,Other,"12,484.62",Tech Weld I Blekinge AB,5121594
BEIS,UKAEA,16/05/2022,Engineering Goods,Fusion,"1,127.80",Oxford Bolts & Bearings,5121595
BEIS,UKAEA,16/05/2022,Engineering Goods,Fusion,"2,348.09",Oxford Bolts & Bearings,5121596
BEIS,UKAEA,16/05/2022,Communications,Fusion,"1,220.20",Architectural and Heritage Scanning Limited,5121597
BEIS,UKAEA,16/05/2022,Communications,Fusion,"1,220.20",Architectural and Heritage Scanning Limited,5121597
BEIS,UKAEA,16/05/2022,Engineering Goods,Fusion,"7,859.52",Telonic Instruments Ltd,5121599
BEIS,UKAEA,16/05/2022,Research,Fusion,"24,962.50",Laser Additive Solutions Ltd,5121600
BEIS,UKAEA,16/05/2022,Engineering Goods,Fusion,"3,135.77",Leybold UK Ltd,5121602
BEIS,UKAEA,16/05/2022,ICT,Property,"9,942.20",Insight Direct UK Ltd,5121603
BEIS,UKAEA,16/05/2022,ICT,Property,"2,400.00",Insight Direct UK Ltd,5121604
BEIS,UKAEA,16/05/2022,ICT,Property,"7,210.18",Insight Direct UK Ltd,5121604
BEIS,UKAEA,16/05/2022,ICT,Property,"23,622.08",Insight Direct UK Ltd,5121604
BEIS,UKAEA,16/05/2022,ICT,Support Services,"13,000.00",Unit 4 Business Software,5121606
BEIS,UKAEA,18/05/2022,Hired Agency Staff - Rullion CMF/PO,Support Services,"7,781.40",Rullion Engineering Ltd,5121610
BEIS,UKAEA,16/05/2022,Facilities,Property,"7,339.88",Trinity Fire & Security Systems Ltd,5121614
BEIS,UKAEA,16/05/2022,Facilities,Property,"6,221.28",Trinity Fire & Security Systems Ltd,5121616
BEIS,UKAEA,18/05/2022,Learning and Development,Fusion,"1,401.00",Merrell People Ltd,5121618
BEIS,UKAEA,16/05/2022,Engineering Goods,Fusion,"1,376.64",Harting Ltd,5121621
BEIS,UKAEA,16/05/2022,Engineering Goods,Fusion,804.45,TVH,5121625
BEIS,UKAEA,16/05/2022,ICT,Support Services,"21,512.73",Sphera UK Ltd,5121626
BEIS,UKAEA,16/05/2022,Engineering Goods,Fusion,"2,019.12",HPC Engineering Plc,5121628
BEIS,UKAEA,18/05/2022,Facilities,Fusion,"9,337.96",Atkins Ltd,5121637
BEIS,UKAEA,18/05/2022,Facilities,Fusion,"10,348.67",Atkins Ltd,5121638
BEIS,UKAEA,18/05/2022,Research,Fusion,"6,451.13",Lancaster University,5121639
BEIS,UKAEA,18/05/2022,Operational Goods,Fusion,871.11,Arco Ltd,5121640
BEIS,UKAEA,18/05/2022,Facilities,Fusion,"2,206.00",Konecranes Demag (UK) Ltd,5121646
BEIS,UKAEA,18/05/2022,Professional Services,Other,"84,213.85",Burges Salmon,5121647
BEIS,UKAEA,18/05/2022,Engineering Goods,Fusion,910.00,Farnell Electronic Components Ltd,5121648
BEIS,UKAEA,19/05/2022,Engineering Goods,Fusion,"2,422.00",Elmo Motion Control Limited,5121649
BEIS,UKAEA,18/05/2022,Professional Services,Statement of Financial Position,"19,165.90",Irwin Mitchell LLP Clients Account,5121650
BEIS,UKAEA,18/05/2022,Research,Fusion,"1,951.38",Lancaster University,5121653
BEIS,UKAEA,19/05/2022,Professional Services,Fusion,"4,548.88",ASG Superconductors S.p.A,5121654
BEIS,UKAEA,18/05/2022,Professional Services,Fusion,"7,532.00",Environment Agency,5121660
BEIS,UKAEA,18/05/2022,Engineering Goods,Fusion,586.60,Oxford Bolts & Bearings,5121663
BEIS,UKAEA,18/05/2022,Facilities,Property,"-2,342.75",OCS Group UK Ltd,5121665
BEIS,UKAEA,18/05/2022,Engineering Goods,Fusion,"2,222.08",Lemo UK Ltd,5121666
BEIS,UKAEA,18/05/2022,Facilities,Property,"-2,026.61",OCS Group UK Ltd,5121667
BEIS,UKAEA,18/05/2022,Engineering Goods,Fusion,"1,112.75",J & E Hall Ltd.,5121670
BEIS,UKAEA,18/05/2022,Facilities,Property,"5,416.02",OCS Group UK Ltd,5121671
BEIS,UKAEA,18/05/2022,Facilities,Property,"1,789.03",OCS Group UK Ltd,5121672
BEIS,UKAEA,18/05/2022,Facilities,Property,"2,197.10",OCS Group UK Ltd,5121673
BEIS,UKAEA,18/05/2022,Facilities,Fusion,"1,381.24",OCS Group UK Ltd,5121675
BEIS,UKAEA,18/05/2022,Facilities,Fusion,"5,634.73",OCS Group UK Ltd,5121676
BEIS,UKAEA,18/05/2022,Facilities,Property,"6,886.91",OCS Group UK Ltd,5121676
BEIS,UKAEA,18/05/2022,Facilities,Fusion,"3,591.22",OCS Group UK Ltd,5121677
BEIS,UKAEA,18/05/2022,Facilities,Other,"8,159.00",Atkins Ltd,5121678
BEIS,UKAEA,18/05/2022,Facilities,Fusion,"10,587.41",Atkins Ltd,5121679
BEIS,UKAEA,18/05/2022,Engineering Goods,Property,"3,199.81",City Electrical Factors,5121683
BEIS,UKAEA,18/05/2022,Engineering Goods,Fusion,600.00,Lyreco UK Limited,5121686
BEIS,UKAEA,18/05/2022,Waste Management,Fusion,"3,795.19",Hills Waste Solutions Ltd,5121688
BEIS,UKAEA,18/05/2022,Personnel Related,Support Services,"8,500.00",Sundry Supplier,5121691
BEIS,UKAEA,18/05/2022,Hired Agency Staff - Rullion CMF/PO,Support Services,"2,118.15",Rullion Engineering Ltd,5121698
BEIS,UKAEA,18/05/2022,Professional Services,Fusion,"82,706.60",Quartzelec Ltd,5121702
BEIS,UKAEA,18/05/2022,Facilities,Property,"58,663.09",SPIE Limited,5121707
BEIS,UKAEA,18/05/2022,Hired Agency Staff - Rullion CMF/PO,Fusion,"7,196.49",Rullion Engineering Ltd,5121711
BEIS,UKAEA,18/05/2022,Professional Services,Property,"3,536.32",Architectural and Heritage Scanning Limited,5121712
BEIS,UKAEA,18/05/2022,Hired Agency Staff - Rullion CMF/PO,Fusion,"3,989.98",Rullion Engineering Ltd,5121713
BEIS,UKAEA,18/05/2022,Hired Agency Staff - Rullion CMF/PO,Support Services,"6,207.22",Rullion Engineering Ltd,5121714
BEIS,UKAEA,18/05/2022,Hired Agency Staff - Rullion CMF/PO,Fusion,"1,617.75",Rullion Engineering Ltd,5121716
BEIS,UKAEA,18/05/2022,Hired Agency Staff - Rullion CMF/PO,Fusion,"4,063.52",Rullion Engineering Ltd,5121717
BEIS,UKAEA,18/05/2022,Hired Agency Staff - Rullion CMF/PO,Fusion,"3,073.96",Rullion Engineering Ltd,5121719
BEIS,UKAEA,18/05/2022,Hired Agency Staff - Rullion CMF/PO,Fusion,"6,089.86",Rullion Engineering Ltd,5121721
BEIS,UKAEA,18/05/2022,Engineering Goods,Fusion,800.00,Van Toan Lee LTD,5121722
BEIS,UKAEA,18/05/2022,Hired Agency Staff - Rullion CMF/PO,Support Services,"2,116.77",Rullion Engineering Ltd,5121723
BEIS,UKAEA,18/05/2022,Hired Agency Staff - Rullion CMF/PO,Support Services,"6,156.04",Rullion Engineering Ltd,5121724
BEIS,UKAEA,18/05/2022,Hired Agency Staff - Rullion CMF/PO,Support Services,"6,151.87",Rullion Engineering Ltd,5121725
BEIS,UKAEA,18/05/2022,Engineering Goods,Fusion,"2,267.00",Crowcon Detection Instruments Ltd,5121727
BEIS,UKAEA,18/05/2022,Engineering Goods,Fusion,757.88,RS Components Ltd,5121728
BEIS,UKAEA,18/05/2022,Professional Services,Property,"2,700.00",BSP Consulting,5121736
BEIS,UKAEA,18/05/2022,Construction,Property,800.00,Van Toan Lee LTD,5121737
BEIS,UKAEA,18/05/2022,Construction,Property,"1,200.00",Van Toan Lee LTD,5121738
BEIS,UKAEA,18/05/2022,Hired Agency Staff - Rullion CMF/PO,Fusion,"1,874.48",Rullion Engineering Ltd,5121739
BEIS,UKAEA,18/05/2022,Professional Services,Support Services,"30,624.16",Arthur J Gallagher Insurance Brokers Limited,5121740
BEIS,UKAEA,18/05/2022,Professional Services,Support Services,"461,216.00",Arthur J Gallagher Insurance Brokers Limited,5121741
BEIS,UKAEA,18/05/2022,Professional Services,Support Services,"467,868.80",Arthur J Gallagher Insurance Brokers Limited,5121742
BEIS,UKAEA,18/05/2022,Hired Agency Staff - Rullion CMF/PO,Fusion,"8,265.24",Rullion Engineering Ltd,5121743
BEIS,UKAEA,18/05/2022,Professional Services,Support Services,"14,155.97",Arthur J Gallagher Insurance Brokers Limited,5121744
BEIS,UKAEA,18/05/2022,Professional Services,Support Services,"3,333.00",Arthur J Gallagher Insurance Brokers Limited,5121745
BEIS,UKAEA,18/05/2022,Engineering Goods,Fusion,"3,723.01",Beckhoff Automation Ltd,5121746
BEIS,UKAEA,18/05/2022,Professional Services,Support Services,"23,402.40",Arthur J Gallagher Insurance Brokers Limited,5121747
BEIS,UKAEA,18/05/2022,Professional Services,Support Services,997.89,Arthur J Gallagher Insurance Brokers Limited,5121748
BEIS,UKAEA,18/05/2022,Professional Services,Support Services,"11,000.00",Arthur J Gallagher Insurance Brokers Limited,5121749
BEIS,UKAEA,18/05/2022,Hired Agency Staff - Rullion CMF/PO,Support Services,"6,415.88",Rullion Engineering Ltd,5121750
BEIS,UKAEA,18/05/2022,Hired Agency Staff - Rullion CMF/PO,Support Services,"7,647.95",Rullion Engineering Ltd,5121751
BEIS,UKAEA,18/05/2022,Engineering Goods,Property,829.26,City Electrical Factors,5121752
BEIS,UKAEA,18/05/2022,Professional Services,Property,"6,111.00",Blake Morgan LLP,5121756
BEIS,UKAEA,18/05/2022,Hired Agency Staff - Rullion CMF/PO,Support Services,"7,377.31",Rullion Engineering Ltd,5121758
BEIS,UKAEA,18/05/2022,Hired Agency Staff - Rullion CMF/PO,Fusion,"2,549.80",Rullion Engineering Ltd,5121760
BEIS,UKAEA,18/05/2022,Hired Agency Staff - Rullion CMF/PO,Fusion,"3,405.18",Rullion Engineering Ltd,5121761
BEIS,UKAEA,18/05/2022,Hired Agency Staff - Rullion CMF/PO,Fusion,"17,277.70",Rullion Engineering Ltd,5121762
BEIS,UKAEA,18/05/2022,Hired Agency Staff - Rullion CMF/PO,Support Services,"9,940.58",Rullion Engineering Ltd,5121764
BEIS,UKAEA,18/05/2022,Engineering Goods,Fusion,"2,863.00",Michell Instruments Ltd,5121765
BEIS,UKAEA,18/05/2022,Hired Agency Staff - Rullion CMF/PO,Fusion,"4,662.84",Rullion Engineering Ltd,5121766
BEIS,UKAEA,18/05/2022,Engineering Goods,Fusion,608.55,Vacuum Furnace Engineering Ltd,5121767
BEIS,UKAEA,18/05/2022,Hired Agency Staff - Rullion CMF/PO,Fusion,"12,609.24",Rullion Engineering Ltd,5121768
BEIS,UKAEA,18/05/2022,Engineering Goods,Fusion,692.37,MF Hydraulics Ltd,5121771
BEIS,UKAEA,18/05/2022,Hired Agency Staff - Rullion CMF/PO,Support Services,"3,490.64",Rullion Engineering Ltd,5121772
BEIS,UKAEA,18/05/2022,Hired Agency Staff - Rullion CMF/PO,Fusion,"7,678.36",Rullion Engineering Ltd,5121775
BEIS,UKAEA,19/05/2022,Engineering Goods,Other,"5,664.45",Toci OU,5121777
BEIS,UKAEA,18/05/2022,Office Solutions,Fusion,733.86,Lyreco UK Limited,5121778
BEIS,UKAEA,18/05/2022,Hired Agency Staff - Rullion CMF/PO,Support Services,"8,632.52",Rullion Engineering Ltd,5121780
BEIS,UKAEA,18/05/2022,Engineering Goods,Fusion,"1,250.00",D Furnell Plant Services Ltd,5121782
BEIS,UKAEA,18/05/2022,Hired Agency Staff - Rullion CMF/PO,Fusion,"10,167.25",Rullion Engineering Ltd,5121783
BEIS,UKAEA,18/05/2022,Engineering Goods,Fusion,591.75,Mouser Electronics,5121784
BEIS,UKAEA,18/05/2022,Hired Agency Staff - Rullion CMF/PO,Fusion,"2,078.25",Rullion Engineering Ltd,5121786
BEIS,UKAEA,18/05/2022,Hired Agency Staff - Rullion CMF/PO,Fusion,"6,548.70",Rullion Engineering Ltd,5121787
BEIS,UKAEA,18/05/2022,Hired Agency Staff - Rullion CMF/PO,Fusion,"1,400.07",Rullion Engineering Ltd,5121788
BEIS,UKAEA,18/05/2022,Hired Agency Staff - Rullion CMF/PO,Support Services,"3,016.98",Rullion Engineering Ltd,5121789
BEIS,UKAEA,18/05/2022,Hired Agency Staff - Rullion CMF/PO,Fusion,"2,641.81",Rullion Engineering Ltd,5121790
BEIS,UKAEA,18/05/2022,Hired Agency Staff - Rullion CMF/PO,Support Services,"5,956.77",Rullion Engineering Ltd,5121791
BEIS,UKAEA,18/05/2022,Hired Agency Staff - Rullion CMF/PO,Support Services,"1,914.20",Rullion Engineering Ltd,5121792
BEIS,UKAEA,18/05/2022,Hired Agency Staff - Rullion CMF/PO,Other,"6,997.59",Rullion Engineering Ltd,5121793
BEIS,UKAEA,18/05/2022,Hired Agency Staff - Rullion CMF/PO,Support Services,"5,094.39",Rullion Engineering Ltd,5121794
BEIS,UKAEA,18/05/2022,Hired Agency Staff - Rullion CMF/PO,Fusion,"8,081.99",Rullion Engineering Ltd,5121795
BEIS,UKAEA,18/05/2022,Engineering Goods,Fusion,658.85,Fortress Interlocks Ltd,5121796
BEIS,UKAEA,18/05/2022,Hired Agency Staff - Rullion CMF/PO,Support Services,"4,953.46",Rullion Engineering Ltd,5121797
BEIS,UKAEA,18/05/2022,Hired Agency Staff - Rullion CMF/PO,Support Services,"6,555.30",Rullion Engineering Ltd,5121798
BEIS,UKAEA,18/05/2022,Professional Services,Fusion,"32,151.60",Assystem UK Limited,5121799
BEIS,UKAEA,18/05/2022,Hired Agency Staff - Rullion CMF/PO,Support Services,"5,477.60",Rullion Engineering Ltd,5121800
BEIS,UKAEA,18/05/2022,Engineering Goods,Other,819.42,Farnell Electronic Components Ltd,5121801
BEIS,UKAEA,18/05/2022,Hired Agency Staff - Rullion CMF/PO,Fusion,"2,837.70",Rullion Engineering Ltd,5121803
BEIS,UKAEA,18/05/2022,Professional Services,Fusion,921.69,British Engineering Services Ltd,5121804
BEIS,UKAEA,18/05/2022,Apprenticeship Levy,Statement of Financial Position,"30,278.00",HMRC Cumbernauld - Payroll,5121806
BEIS,UKAEA,18/05/2022,Hired Agency Staff - Rullion CMF/PO,Fusion,"3,928.45",Rullion Engineering Ltd,5121808
BEIS,UKAEA,18/05/2022,Hired Agency Staff - Rullion CMF/PO,Fusion,"4,248.00",Rullion Engineering Ltd,5121809
BEIS,UKAEA,20/05/2022,Engineering Goods,Other,"1,820.27",Polysoude SAS,5121812
BEIS,UKAEA,18/05/2022,Hired Agency Staff - Rullion CMF/PO,Fusion,"2,001.71",Rullion Engineering Ltd,5121813
BEIS,UKAEA,18/05/2022,Hired Agency Staff - Rullion CMF/PO,Fusion,"3,851.79",Rullion Engineering Ltd,5121814
BEIS,UKAEA,20/05/2022,Engineering Goods,Fusion,"35,550.32",Sedi Ati Fibres Optiques,5121816
BEIS,UKAEA,18/05/2022,Professional Services,Other,"19,000.00",James Fisher Nuclear Limited,5121817
BEIS,UKAEA,18/05/2022,Office Solutions,Fusion,"2,070.00",IOP Publishing Ltd - GBP,5121818
BEIS,UKAEA,18/05/2022,Hired Agency Staff - Rullion CMF/PO,Other,"2,358.90",Rullion Engineering Ltd,5121819
BEIS,UKAEA,18/05/2022,Hired Agency Staff - Rullion CMF/PO,Support Services,"7,684.70",Rullion Engineering Ltd,5121820
BEIS,UKAEA,18/05/2022,Personnel Related,Support Services,"2,237.62",People Asset Management Ltd,5121821
BEIS,UKAEA,18/05/2022,Personnel Related,Support Services,"12,439.79",People Asset Management Ltd,5121822
BEIS,UKAEA,18/05/2022,Hired Agency Staff - Rullion CMF/PO,Support Services,"7,665.14",Rullion Engineering Ltd,5121823
BEIS,UKAEA,18/05/2022,Hired Agency Staff - Rullion CMF/PO,Support Services,"8,343.00",Rullion Engineering Ltd,5121824
BEIS,UKAEA,18/05/2022,Hired Agency Staff - Rullion CMF/PO,Support Services,"6,756.75",Rullion Engineering Ltd,5121825
BEIS,UKAEA,18/05/2022,Hired Agency Staff - Rullion CMF/PO,Support Services,"8,379.00",Rullion Engineering Ltd,5121826
BEIS,UKAEA,18/05/2022,Hired Agency Staff - Rullion CMF/PO,Fusion,"11,201.25",Rullion Engineering Ltd,5121827
BEIS,UKAEA,18/05/2022,Hired Agency Staff - Rullion CMF/PO,Support Services,"5,234.69",Rullion Engineering Ltd,5121828
BEIS,UKAEA,18/05/2022,Hired Agency Staff - Rullion CMF/PO,Support Services,"1,820.98",Rullion Engineering Ltd,5121829
BEIS,UKAEA,18/05/2022,Hired Agency Staff - Rullion CMF/PO,Support Services,"6,457.50",Rullion Engineering Ltd,5121830
BEIS,UKAEA,18/05/2022,Hired Agency Staff - Rullion CMF/PO,Other,"1,285.12",Rullion Engineering Ltd,5121831
BEIS,UKAEA,19/05/2022,Professional Services,Fusion,"7,607.25",NRB SA,5121832
BEIS,UKAEA,18/05/2022,Hired Agency Staff - Rullion CMF/PO,Fusion,"4,234.36",Rullion Engineering Ltd,5121833
BEIS,UKAEA,18/05/2022,Hired Agency Staff - Rullion CMF/PO,Fusion,"3,778.02",Rullion Engineering Ltd,5121834
BEIS,UKAEA,18/05/2022,Hired Agency Staff - Rullion CMF/PO,Fusion,"6,127.12",Rullion Engineering Ltd,5121835
BEIS,UKAEA,18/05/2022,Hired Agency Staff - Rullion CMF/PO,Support Services,"6,412.52",Rullion Engineering Ltd,5121836
BEIS,UKAEA,18/05/2022,Hired Agency Staff - Rullion CMF/PO,Other,755.37,Rullion Engineering Ltd,5121838
BEIS,UKAEA,18/05/2022,Hired Agency Staff - Rullion CMF/PO,Other,"5,827.25",Rullion Engineering Ltd,5121839
BEIS,UKAEA,18/05/2022,Hired Agency Staff - Rullion CMF/PO,Support Services,"8,765.57",Rullion Engineering Ltd,5121840
BEIS,UKAEA,18/05/2022,Hired Agency Staff - Rullion CMF/PO,Fusion,"8,340.95",Rullion Engineering Ltd,5121844
BEIS,UKAEA,18/05/2022,Hired Agency Staff - Rullion CMF/PO,Fusion,"2,676.20",Rullion Engineering Ltd,5121845
BEIS,UKAEA,18/05/2022,Engineering Goods,Fusion,655.33,Feedwater Ltd,5121846
BEIS,UKAEA,18/05/2022,Engineering Goods,Fusion,820.75,Feedwater Ltd,5121847
BEIS,UKAEA,18/05/2022,Professional Services,Property,"2,355.00",CBG Consultants Ltd.,5121848
BEIS,UKAEA,18/05/2022,Hired Agency Staff - Rullion CMF/PO,Fusion,"4,696.42",Rullion Engineering Ltd,5121849
BEIS,UKAEA,18/05/2022,Hired Agency Staff - Rullion CMF/PO,Other,618.15,Rullion Engineering Ltd,5121850
BEIS,UKAEA,18/05/2022,Hired Agency Staff - Rullion CMF/PO,Fusion,"8,746.88",Rullion Engineering Ltd,5121851
BEIS,UKAEA,18/05/2022,Hired Agency Staff - Rullion CMF/PO,Fusion,"1,966.28",Rullion Engineering Ltd,5121852
BEIS,UKAEA,18/05/2022,Hired Agency Staff - Rullion CMF/PO,Support Services,"1,675.00",Rullion Engineering Ltd,5121853
BEIS,UKAEA,18/05/2022,Hired Agency Staff - Rullion CMF/PO,Fusion,"5,112.12",Rullion Engineering Ltd,5121854
BEIS,UKAEA,18/05/2022,Hired Agency Staff - Rullion CMF/PO,Fusion,"3,927.04",Rullion Engineering Ltd,5121855
BEIS,UKAEA,18/05/2022,Hired Agency Staff - Rullion CMF/PO,Fusion,"4,387.50",Rullion Engineering Ltd,5121856
BEIS,UKAEA,18/05/2022,Hired Agency Staff - Rullion CMF/PO,Support Services,"10,335.59",Rullion Engineering Ltd,5121857
BEIS,UKAEA,18/05/2022,Hired Agency Staff - Rullion CMF/PO,Fusion,"2,449.86",Rullion Engineering Ltd,5121858
BEIS,UKAEA,18/05/2022,Facilities,Fusion,"7,843.77",Assystem UK Limited,5121859
BEIS,UKAEA,18/05/2022,Hired Agency Staff - Rullion CMF/PO,Fusion,"3,982.35",Rullion Engineering Ltd,5121860
BEIS,UKAEA,18/05/2022,Learning and Development,Other,"1,500.00",Burge Hughes Walsh Limited,5121862
BEIS,UKAEA,18/05/2022,Engineering Goods,Other,"2,603.32",Sundry Supplier,5121863
BEIS,UKAEA,18/05/2022,Hired Agency Staff - Rullion CMF/PO,Fusion,"3,807.00",Rullion Engineering Ltd,5121866
BEIS,UKAEA,18/05/2022,Hired Agency Staff - Rullion CMF/PO,Fusion,"5,516.28",Rullion Engineering Ltd,5121867
BEIS,UKAEA,18/05/2022,Hired Agency Staff - Rullion CMF/PO,Fusion,"3,572.55",Rullion Engineering Ltd,5121868
BEIS,UKAEA,18/05/2022,Engineering Goods,Other,"3,712.99",Critical Power Supplies Ltd,5121869
BEIS,UKAEA,18/05/2022,Hired Agency Staff - Rullion CMF/PO,Fusion,"2,395.90",Rullion Engineering Ltd,5121876
BEIS,UKAEA,18/05/2022,Hired Agency Staff - Rullion CMF/PO,Fusion,"7,564.06",Rullion Engineering Ltd,5121877
BEIS,UKAEA,18/05/2022,Hired Agency Staff - Rullion CMF/PO,Support Services,"1,217.48",Rullion Engineering Ltd,5121878
BEIS,UKAEA,18/05/2022,Hired Agency Staff - Rullion CMF/PO,Other,"5,622.73",Rullion Engineering Ltd,5121879
BEIS,UKAEA,18/05/2022,Engineering Goods,Fusion,905.31,Pilz Automation Technology,5121881
BEIS,UKAEA,20/05/2022,Office Solutions,Fusion,"1,366.24",IOP Publishing Ltd - EUR,5121882
BEIS,UKAEA,18/05/2022,ICT,Property,"2,450.00",Mirror Consulting Ltd,5121886
BEIS,UKAEA,18/05/2022,Facilities,Property,"50,810.20",Greenford Limited,5121887
BEIS,UKAEA,20/05/2022,Office Solutions,Fusion,"2,417.19",IOP Publishing Ltd - EUR,5121890
BEIS,UKAEA,20/05/2022,Office Solutions,Fusion,"1,511.55",IOP Publishing Ltd - EUR,5121891
BEIS,UKAEA,18/05/2022,ICT,Fusion,"9,867.83",Dell Corporation Ltd,5121892
BEIS,UKAEA,18/05/2022,ICT,Other,"4,761.38",Dell Corporation Ltd,5121896
BEIS,UKAEA,18/05/2022,Engineering Goods,Fusion,"1,050.00",Crowcon Detection Instruments Ltd,5121898
BEIS,UKAEA,18/05/2022,Engineering Goods,Fusion,"1,789.10",Rexel UK Ltd (Abingdon),5121899
BEIS,UKAEA,18/05/2022,Hired Agency Staff - Rullion CMF/PO,Fusion,"2,218.05",Rullion Engineering Ltd,5121901
BEIS,UKAEA,18/05/2022,Other Provisions - Utilisation,Statement of Financial Position,"2,115.93",Paymaster (1836) Ltd RE:UKAEA Recharges,5121902
BEIS,UKAEA,18/05/2022,Other Provisions - Utilisation,Statement of Financial Position,"4,870.60",Paymaster (1836) Ltd RE:UKAEA Recharges,5121902
BEIS,UKAEA,18/05/2022,Learning and Development,Other,"1,237.50",Premier People Solutions T/A Premier Partnership,5121903
BEIS,UKAEA,18/05/2022,Hired Agency Staff - Rullion CMF/PO,Support Services,"12,207.17",Rullion Engineering Ltd,5121904
BEIS,UKAEA,18/05/2022,Personnel Related,Fusion,675.00,Webrecruit,5121906
BEIS,UKAEA,23/05/2022,Office Solutions,Fusion,"1,880.00",Elsevier Science BV - GBP,5121908
BEIS,UKAEA,25/05/2022,Hired Agency Staff - Rullion CMF/PO,Fusion,"4,370.93",Rullion Engineering Ltd,5121909
BEIS,UKAEA,23/05/2022,Office Solutions,Fusion,"1,880.00",Elsevier Science BV - GBP,5121910
BEIS,UKAEA,23/05/2022,Office Solutions,Fusion,"1,880.00",Elsevier Science BV - GBP,5121911
BEIS,UKAEA,25/05/2022,Hired Agency Staff - Rullion CMF/PO,Other,"3,517.21",Rullion Engineering Ltd,5121916
BEIS,UKAEA,23/05/2022,Engineering Goods,Fusion,"2,052.00",Vat Vacuum Products Ltd,5121917
BEIS,UKAEA,23/05/2022,Professional Services,Fusion,850.00,Collinson Grant,5121919
BEIS,UKAEA,25/05/2022,Hired Agency Staff - Rullion CMF/PO,Support Services,"10,100.72",Rullion Engineering Ltd,5121921
BEIS,UKAEA,25/05/2022,Hired Agency Staff - Rullion CMF/PO,Support Services,"1,120.50",Rullion Engineering Ltd,5121922
BEIS,UKAEA,25/05/2022,Hired Agency Staff - Rullion CMF/PO,Fusion,"6,616.00",Rullion Engineering Ltd,5121923
BEIS,UKAEA,23/05/2022,Facilities,Fusion,"9,389.73",Atkins Ltd,5121926
BEIS,UKAEA,23/05/2022,Engineering Goods,Fusion,940.20,Lemo UK Ltd,5121927
BEIS,UKAEA,23/05/2022,Engineering Goods,Fusion,"3,902.88",Lemo UK Ltd,5121927
BEIS,UKAEA,23/05/2022,Engineering Goods,Fusion,"1,207.17",ABB Limited,5121929
BEIS,UKAEA,23/05/2022,Engineering Goods,Fusion,"6,028.75",Vistech Cooling Systems Limited,5121932
BEIS,UKAEA,25/05/2022,Hired Agency Staff - Rullion CMF/PO,Fusion,"7,692.87",Rullion Engineering Ltd,5121934
BEIS,UKAEA,25/05/2022,Hired Agency Staff - Rullion CMF/PO,Fusion,"3,909.26",Rullion Engineering Ltd,5121935
BEIS,UKAEA,25/05/2022,Hired Agency Staff - Rullion CMF/PO,Fusion,"2,112.90",Rullion Engineering Ltd,5121936
BEIS,UKAEA,25/05/2022,Hired Agency Staff - Rullion CMF/PO,Fusion,"4,597.70",Rullion Engineering Ltd,5121937
BEIS,UKAEA,23/05/2022,Engineering Goods,Fusion,"2,550.00",Condec Industrial Maintenance,5121939
BEIS,UKAEA,23/05/2022,Travel,Support Services,"5,680.28",Flightlink Chauffeurs Limited,5121940
BEIS,UKAEA,25/05/2022,Hired Agency Staff - Rullion CMF/PO,Fusion,"4,112.52",Rullion Engineering Ltd,5121941
BEIS,UKAEA,23/05/2022,Engineering Goods,Fusion,"3,350.00",RS Components Ltd,5121942
BEIS,UKAEA,23/05/2022,Engineering Goods,Fusion,"3,350.00",RS Components Ltd,5121942
BEIS,UKAEA,23/05/2022,Facilities,Other,"2,002.00",Buehler,5121943
BEIS,UKAEA,25/05/2022,Hired Agency Staff - Rullion CMF/PO,Fusion,"7,181.63",Rullion Engineering Ltd,5121946
BEIS,UKAEA,23/05/2022,Professional Services,Fusion,814.00,Hydroblast,5121948
BEIS,UKAEA,25/05/2022,Hired Agency Staff - Rullion CMF/PO,Support Services,"10,413.63",Rullion Engineering Ltd,5121949
BEIS,UKAEA,25/05/2022,Hired Agency Staff - Rullion CMF/PO,Fusion,"8,054.82",Rullion Engineering Ltd,5121950
BEIS,UKAEA,25/05/2022,Hired Agency Staff - Rullion CMF/PO,Support Services,"6,722.52",Rullion Engineering Ltd,5121951
BEIS,UKAEA,25/05/2022,Hired Agency Staff - Rullion CMF/PO,Fusion,"5,326.57",Rullion Engineering Ltd,5121960
BEIS,UKAEA,23/05/2022,Engineering Goods,Fusion,"2,024.54",RS Components Ltd,5121963
BEIS,UKAEA,23/05/2022,Engineering Goods,Fusion,"1,007.40",Lemo UK Ltd,5121964
BEIS,UKAEA,25/05/2022,Hired Agency Staff - Rullion CMF/PO,Support Services,"5,205.28",Rullion Engineering Ltd,5121965
BEIS,UKAEA,25/05/2022,Hired Agency Staff - Rullion CMF/PO,Fusion,"5,247.00",Rullion Engineering Ltd,5121966
BEIS,UKAEA,25/05/2022,Hired Agency Staff - Rullion CMF/PO,Fusion,651.00,Rullion Engineering Ltd,5121967
BEIS,UKAEA,25/05/2022,Hired Agency Staff - Rullion CMF/PO,Fusion,"4,701.38",Rullion Engineering Ltd,5121968
BEIS,UKAEA,25/05/2022,Hired Agency Staff - Rullion CMF/PO,Fusion,"1,635.00",Rullion Engineering Ltd,5121969
BEIS,UKAEA,25/05/2022,Hired Agency Staff - Rullion CMF/PO,Fusion,"3,391.97",Rullion Engineering Ltd,5121971
BEIS,UKAEA,25/05/2022,Hired Agency Staff - Rullion CMF/PO,Fusion,"2,391.38",Rullion Engineering Ltd,5121972
BEIS,UKAEA,25/05/2022,Hired Agency Staff - Rullion CMF/PO,Support Services,"7,370.99",Rullion Engineering Ltd,5121973
BEIS,UKAEA,25/05/2022,Hired Agency Staff - Rullion CMF/PO,Support Services,"11,405.82",Rullion Engineering Ltd,5121975
BEIS,UKAEA,25/05/2022,Hired Agency Staff - Rullion CMF/PO,Support Services,"5,068.08",Rullion Engineering Ltd,5121976
BEIS,UKAEA,25/05/2022,Hired Agency Staff - Rullion CMF/PO,Fusion,"5,257.92",Rullion Engineering Ltd,5121977
BEIS,UKAEA,23/05/2022,Professional Services,Fusion,"2,993.01",Atkins Ltd,5121978
BEIS,UKAEA,23/05/2022,Travel,Other,910.00,Compass Contract Services (UK) Ltd,5121979
BEIS,UKAEA,23/05/2022,Personnel Related,Property,"1,725.50",The IET,5121980
BEIS,UKAEA,25/05/2022,Hired Agency Staff - Rullion CMF/PO,Fusion,"8,075.20",Rullion Engineering Ltd,5121981
BEIS,UKAEA,25/05/2022,Hired Agency Staff - Rullion CMF/PO,Support Services,"1,950.34",Rullion Engineering Ltd,5121982
BEIS,UKAEA,25/05/2022,Construction,Support Services,668.84,Doosan Babcock Ltd.,5121983
BEIS,UKAEA,23/05/2022,Engineering Goods,Fusion,"1,279.14",Lemo UK Ltd,5121984
BEIS,UKAEA,23/05/2022,Operational Goods,Fusion,"10,917.50",Stephens Industries Ltd,5121987
BEIS,UKAEA,23/05/2022,Operational Goods,Fusion,"11,058.00",Stephens Industries Ltd,5121988
BEIS,UKAEA,25/05/2022,Hired Agency Staff - Rullion CMF/PO,Fusion,"7,571.52",Rullion Engineering Ltd,5121992
BEIS,UKAEA,23/05/2022,Engineering Goods,Fusion,"7,406.00",Carbolite Gero Ltd,5121995
BEIS,UKAEA,26/05/2022,Logistics and Shipping,Other,"1,757.20",IBS Inc.,5121996
BEIS,UKAEA,26/05/2022,Engineering Goods,Other,"4,240.20",IBS Inc.,5121996
BEIS,UKAEA,25/05/2022,Hired Agency Staff - Rullion CMF/PO,Fusion,"3,839.72",Rullion Engineering Ltd,5121997
BEIS,UKAEA,26/05/2022,Engineering Goods,Fusion,"7,907.62",Linde Kryotechnik Ag,5121999
BEIS,UKAEA,25/05/2022,Hired Agency Staff - Rullion CMF/PO,Other,"4,503.69",Rullion Engineering Ltd,5122001
BEIS,UKAEA,25/05/2022,Hired Agency Staff - Rullion CMF/PO,Support Services,"5,119.97",Rullion Engineering Ltd,5122002
BEIS,UKAEA,23/05/2022,Professional Services,Property,660.00,Carter Jonas LLP,5122007
BEIS,UKAEA,25/05/2022,Hired Agency Staff - Rullion CMF/PO,Support Services,"1,773.38",Rullion Engineering Ltd,5122008
BEIS,UKAEA,23/05/2022,Engineering Goods,Fusion,606.58,Edmundson Electricals Ltd,5122012
BEIS,UKAEA,25/05/2022,Hired Agency Staff - Rullion CMF/PO,Fusion,"4,273.50",Rullion Engineering Ltd,5122013
BEIS,UKAEA,25/05/2022,Hired Agency Staff - Rullion CMF/PO,Fusion,"7,851.20",Rullion Engineering Ltd,5122014
BEIS,UKAEA,23/05/2022,Engineering Goods,Fusion,"1,267.74",Ind-Tech Ltd,5122016
BEIS,UKAEA,23/05/2022,Engineering Goods,Fusion,"2,990.00",AS Scientific Products Ltd,5122021
BEIS,UKAEA,25/05/2022,Professional Services,Fusion,"8,440.29",Jacobs Clean Energy Ltd - GBP,5122022
BEIS,UKAEA,23/05/2022,Engineering Goods,Fusion,"4,363.50",ABB Ltd,5122023
BEIS,UKAEA,23/05/2022,Engineering Goods,Fusion,"35,126.40",ABB Ltd,5122024
BEIS,UKAEA,23/05/2022,Professional Services,Other,"9,018.79",International Nuclear Services Ltd.,5122025
BEIS,UKAEA,23/05/2022,Engineering Goods,Fusion,"2,640.00",Oxford Filtration Limited,5122031
BEIS,UKAEA,23/05/2022,Engineering Goods,Fusion,896.20,Flowstar UK Limited c/o Dutton Moore,5122032
BEIS,UKAEA,23/05/2022,Engineering Goods,Fusion,931.24,Rittal Limited,5122034
BEIS,UKAEA,25/05/2022,Hired Agency Staff - Rullion CMF/PO,Fusion,"4,832.67",Rullion Engineering Ltd,5122037
BEIS,UKAEA,25/05/2022,Hired Agency Staff - Rullion CMF/PO,Support Services,"2,193.30",Rullion Engineering Ltd,5122038
BEIS,UKAEA,25/05/2022,Engineering Goods,Property,"1,283.50",Sarens UK Ltd,5122040
BEIS,UKAEA,25/05/2022,Hired Agency Staff - Rullion CMF/PO,Support Services,"10,249.10",Rullion Engineering Ltd,5122043
BEIS,UKAEA,25/05/2022,Hired Agency Staff - Rullion CMF/PO,Support Services,"7,699.35",Rullion Engineering Ltd,5122044
BEIS,UKAEA,23/05/2022,Early Retirement Recoveries,Statement of Financial Position,"4,448.00",Paymaster (1836) Ltd RE:UKAEA Recharges,5122045
BEIS,UKAEA,23/05/2022,Early Retirements Prefunding,Statement of Financial Position,"276,029.71",Paymaster (1836) Ltd RE:UKAEA Recharges,5122045
BEIS,UKAEA,25/05/2022,Hired Agency Staff - Rullion CMF/PO,Fusion,"2,373.83",Rullion Engineering Ltd,5122046
BEIS,UKAEA,23/05/2022,Engineering Goods,Fusion,"1,704.00",Vat Vacuum Products Ltd,5122047
BEIS,UKAEA,26/05/2022,Professional Services,Fusion,"8,327.78",NRB SA,5122048
BEIS,UKAEA,25/05/2022,Hired Agency Staff - Rullion CMF/PO,Other,"4,099.06",Rullion Engineering Ltd,5122049
BEIS,UKAEA,25/05/2022,Professional Services,Fusion,"8,470.76",Jacobs Clean Energy Ltd - GBP,5122050
BEIS,UKAEA,23/05/2022,Professional Services,Property,600.00,Salus (Building Control & Fire Safety Consultants) Ltd,5122051
BEIS,UKAEA,23/05/2022,Engineering Goods,Fusion,"1,786.00",Vistech Cooling Systems Limited,5122052
BEIS,UKAEA,27/05/2022,Engineering Goods,Fusion,"1,115.78",Reinhold Muhleisen GmbH,5122054
BEIS,UKAEA,23/05/2022,Engineering Goods,Fusion,"20,815.00",Engineering & Technical Solution Ltd,5122055
BEIS,UKAEA,23/05/2022,Office Solutions,Other,624.00,IOP Publishing Ltd - GBP,5122058
BEIS,UKAEA,23/05/2022,Office Solutions,Fusion,896.00,IOP Publishing Ltd - GBP,5122058
BEIS,UKAEA,25/05/2022,Hired Agency Staff - Rullion CMF/PO,Other,"3,698.22",Rullion Engineering Ltd,5122059
BEIS,UKAEA,25/05/2022,Hired Agency Staff - Rullion CMF/PO,Other,"2,230.31",Rullion Engineering Ltd,5122060
BEIS,UKAEA,25/05/2022,Hired Agency Staff - Rullion CMF/PO,Fusion,"5,159.45",Rullion Engineering Ltd,5122061
BEIS,UKAEA,25/05/2022,Hired Agency Staff - Rullion CMF/PO,Fusion,"6,372.00",Rullion Engineering Ltd,5122062
BEIS,UKAEA,25/05/2022,Engineering Goods,Fusion,795.00,Crane Care Ltd,5122063
BEIS,UKAEA,25/05/2022,Hired Agency Staff - Rullion CMF/PO,Fusion,"2,846.50",Rullion Engineering Ltd,5122064
BEIS,UKAEA,25/05/2022,Hired Agency Staff - Rullion CMF/PO,Fusion,"3,642.94",Rullion Engineering Ltd,5122066
BEIS,UKAEA,23/05/2022,Engineering Goods,Other,504.60,ES Precision,5122068
BEIS,UKAEA,25/05/2022,Hired Agency Staff - Rullion CMF/PO,Fusion,"6,467.63",Rullion Engineering Ltd,5122069
BEIS,UKAEA,25/05/2022,Hired Agency Staff - Rullion CMF/PO,Fusion,"6,497.40",Rullion Engineering Ltd,5122070
BEIS,UKAEA,25/05/2022,Hired Agency Staff - Rullion CMF/PO,Fusion,"6,651.27",Rullion Engineering Ltd,5122071
BEIS,UKAEA,25/05/2022,Construction,Property,"22,588.04",Amber Construction Services Ltd,5122072
BEIS,UKAEA,25/05/2022,Construction,Property,"44,260.67",Amber Construction Services Ltd,5122073
BEIS,UKAEA,25/05/2022,Hired Agency Staff - Rullion CMF/PO,Fusion,964.88,Rullion Engineering Ltd,5122075
BEIS,UKAEA,27/05/2022,Engineering Goods,Fusion,"3,458.95",KLEIBER Infrared Gmbh,5122078
BEIS,UKAEA,27/05/2022,Engineering Goods,Fusion,"18,192.47",KLEIBER Infrared Gmbh,5122078
BEIS,UKAEA,25/05/2022,Hired Agency Staff - Rullion CMF/PO,Fusion,"6,518.27",Rullion Engineering Ltd,5122079
BEIS,UKAEA,23/05/2022,ICT,Support Services,"2,068.28",Cinos Limited,5122080
BEIS,UKAEA,23/05/2022,Personnel Related,Statement of Financial Position,"1,958.33",Cyclescheme Ltd,5122085
BEIS,UKAEA,25/05/2022,Hired Agency Staff - Rullion CMF/PO,Support Services,"2,997.36",Rullion Engineering Ltd,5122088
BEIS,UKAEA,23/05/2022,Engineering Goods,Fusion,"3,196.00",Scitec Instruments Ltd,5122089
BEIS,UKAEA,25/05/2022,Personnel Related,Other,930.81,Nuvia Limited,5122090
BEIS,UKAEA,25/05/2022,Personnel Related,Fusion,"17,494.63",Nuvia Limited,5122090
BEIS,UKAEA,25/05/2022,Hired Agency Staff - Rullion CMF/PO,Fusion,"4,539.93",Rullion Engineering Ltd,5122091
BEIS,UKAEA,23/05/2022,Facilities,Property,"68,608.00",South Oxfordshire District Council,5122092
BEIS,UKAEA,25/05/2022,Hired Agency Staff - Rullion CMF/PO,Fusion,"3,754.35",Rullion Engineering Ltd,5122095
BEIS,UKAEA,25/05/2022,Hired Agency Staff - Rullion CMF/PO,Other,"8,032.35",Rullion Engineering Ltd,5122097
BEIS,UKAEA,25/05/2022,Hired Agency Staff - Rullion CMF/PO,Fusion,"7,515.25",Rullion Engineering Ltd,5122099
BEIS,UKAEA,25/05/2022,Hired Agency Staff - Rullion CMF/PO,Fusion,718.80,Rullion Engineering Ltd,5122100
BEIS,UKAEA,25/05/2022,Hired Agency Staff - Rullion CMF/PO,Other,"3,119.02",Rullion Engineering Ltd,5122103
BEIS,UKAEA,23/05/2022,Engineering Goods,Property,702.00,Edmundson Electricals Ltd,5122106
BEIS,UKAEA,23/05/2022,Engineering Goods,Other,"1,293.17",Edmundson Electricals Ltd,5122111
BEIS,UKAEA,23/05/2022,Facilities,Fusion,"3,660.54",Trinity Fire & Security Systems Ltd,5122115
BEIS,UKAEA,23/05/2022,Waste Management,Fusion,"8,286.60",Red Industries (Brownhills) Ltd,5122117
BEIS,UKAEA,25/05/2022,Construction,Property,"141,924.45",McLaughlin & Harvey Limited PBA OAS Phase 3,5122118
BEIS,UKAEA,25/05/2022,Construction,Property,"85,158.55",McLaughlin & Harvey Limited PBA OAS Phase 3,5122119
BEIS,UKAEA,23/05/2022,Engineering Goods,Other,"20,000.00",Visual Logic Ltd T/A The Drawing Room Creative,5122120
BEIS,UKAEA,25/05/2022,Hired Agency Staff - Rullion CMF/PO,Fusion,"1,429.02",Rullion Engineering Ltd,5122121
BEIS,UKAEA,25/05/2022,Hired Agency Staff - Rullion CMF/PO,Support Services,"7,541.55",Rullion Engineering Ltd,5122122
BEIS,UKAEA,25/05/2022,Hired Agency Staff - Rullion CMF/PO,Other,"3,390.32",Rullion Engineering Ltd,5122123
BEIS,UKAEA,25/05/2022,Hired Agency Staff - Rullion CMF/PO,Fusion,"2,985.98",Rullion Engineering Ltd,5122124
BEIS,UKAEA,23/05/2022,Engineering Goods,Fusion,751.73,Swagelok London,5122125
BEIS,UKAEA,25/05/2022,Hired Agency Staff - Rullion CMF/PO,Fusion,"5,962.14",Rullion Engineering Ltd,5122126
BEIS,UKAEA,25/05/2022,Hired Agency Staff - Rullion CMF/PO,Support Services,"9,782.07",Rullion Engineering Ltd,5122127
BEIS,UKAEA,23/05/2022,Facilities,Property,"1,152.00",Environmental Essentials Ltd,5122128
BEIS,UKAEA,25/05/2022,Hired Agency Staff - Rullion CMF/PO,Fusion,"3,095.67",Rullion Engineering Ltd,5122129
BEIS,UKAEA,25/05/2022,Hired Agency Staff - Rullion CMF/PO,Fusion,"3,980.15",Rullion Engineering Ltd,5122130
BEIS,UKAEA,23/05/2022,Professional Services,Other,"3,443.75",Ridge And Partners Llp,5122131
BEIS,UKAEA,25/05/2022,Hired Agency Staff - Rullion CMF/PO,Fusion,"3,903.38",Rullion Engineering Ltd,5122132
BEIS,UKAEA,23/05/2022,ICT,Fusion,"2,908.45",Akhter Computers Limited,5122135
BEIS,UKAEA,23/05/2022,Professional Services,Property,"4,000.00",SenSat Surveying Limited,5122137
BEIS,UKAEA,25/05/2022,Engineering Goods,Property,"1,083.50",Sarens UK Ltd,5122138
BEIS,UKAEA,25/05/2022,Engineering Goods,Property,"1,083.50",Sarens UK Ltd,5122143
BEIS,UKAEA,25/05/2022,Engineering Goods,Property,"1,970.00",Sarens UK Ltd,5122144
BEIS,UKAEA,25/05/2022,Engineering Goods,Property,"1,600.00",Sarens UK Ltd,5122145
BEIS,UKAEA,25/05/2022,Hired Agency Staff - Rullion CMF/PO,Fusion,"4,698.45",Rullion Engineering Ltd,5122146
BEIS,UKAEA,25/05/2022,Hired Agency Staff - Rullion CMF/PO,Fusion,"3,060.90",Rullion Engineering Ltd,5122147
BEIS,UKAEA,25/05/2022,Hired Agency Staff - Rullion CMF/PO,Fusion,"2,774.32",Rullion Engineering Ltd,5122148
BEIS,UKAEA,23/05/2022,Facilities,Property,"1,450.00",Salus (Building Control & Fire Safety Consultants) Ltd,5122150
BEIS,UKAEA,23/05/2022,Communications,Property,968.00,UKSPA,5122156
BEIS,UKAEA,25/05/2022,Hired Agency Staff - Rullion CMF/PO,Fusion,"3,751.80",Rullion Engineering Ltd,5122160
BEIS,UKAEA,23/05/2022,Engineering Goods,Fusion,"2,487.40",Rapide Engineering (Scotland) Ltd,5122162
BEIS,UKAEA,23/05/2022,Construction,Property,750.00,Salus (Building Control & Fire Safety Consultants) Ltd,5122163
BEIS,UKAEA,23/05/2022,Research,Fusion,"7,823.23",Swansea University,5122165
BEIS,UKAEA,25/05/2022,Hired Agency Staff - Rullion CMF/PO,Fusion,"4,723.89",Rullion Engineering Ltd,5122166
BEIS,UKAEA,25/05/2022,Hired Agency Staff - Rullion CMF/PO,Fusion,"2,947.32",Rullion Engineering Ltd,5122167
BEIS,UKAEA,25/05/2022,Hired Agency Staff - Rullion CMF/PO,Fusion,"4,909.10",Rullion Engineering Ltd,5122168
BEIS,UKAEA,25/05/2022,Hired Agency Staff - Rullion CMF/PO,Fusion,"4,620.86",Rullion Engineering Ltd,5122169
BEIS,UKAEA,23/05/2022,Facilities,Fusion,"8,819.70",Engineering Analyis Services Ltd,5122170
BEIS,UKAEA,23/05/2022,ICT,Other,577.96,Insight Direct UK Ltd,5122171
BEIS,UKAEA,25/05/2022,Hired Agency Staff - Rullion CMF/PO,Support Services,"1,638.00",Rullion Engineering Ltd,5122173
BEIS,UKAEA,25/05/2022,Hired Agency Staff - Rullion CMF/PO,Fusion,"7,245.65",Rullion Engineering Ltd,5122174
BEIS,UKAEA,25/05/2022,Hired Agency Staff - Rullion CMF/PO,Support Services,"3,337.92",Rullion Engineering Ltd,5122175
BEIS,UKAEA,25/05/2022,Hired Agency Staff - Rullion CMF/PO,Support Services,"6,797.70",Rullion Engineering Ltd,5122176
BEIS,UKAEA,25/05/2022,Engineering Goods,Other,"3,714.04",Jacobs Clean Energy Ltd - GBP,5122177
BEIS,UKAEA,25/05/2022,Hired Agency Staff - Rullion CMF/PO,Fusion,"9,652.50",Rullion Engineering Ltd,5122178
BEIS,UKAEA,25/05/2022,Hired Agency Staff - Rullion CMF/PO,Fusion,"2,715.06",Rullion Engineering Ltd,5122179
BEIS,UKAEA,25/05/2022,Hired Agency Staff - Rullion CMF/PO,Fusion,"3,131.24",Rullion Engineering Ltd,5122180
BEIS,UKAEA,23/05/2022,Engineering Goods,Other,"2,044.28",Farnell Electronic Components Ltd,5122181
BEIS,UKAEA,25/05/2022,Hired Agency Staff - Rullion CMF/PO,Fusion,"6,666.60",Rullion Engineering Ltd,5122183
BEIS,UKAEA,25/05/2022,Engineering Goods,Fusion,918.00,BOC Ltd,5122184
BEIS,UKAEA,25/05/2022,Engineering Goods,Fusion,"13,922.40",BOC Ltd,5122185
BEIS,UKAEA,23/05/2022,Engineering Goods,Other,668.00,Struers Limited,5122190
BEIS,UKAEA,25/05/2022,Hired Agency Staff - Rullion CMF/PO,Fusion,"6,632.45",Rullion Engineering Ltd,5122191
BEIS,UKAEA,25/05/2022,Hired Agency Staff - Rullion CMF/PO,Support Services,"6,793.66",Rullion Engineering Ltd,5122192
BEIS,UKAEA,25/05/2022,Hired Agency Staff - Rullion CMF/PO,Fusion,"5,327.40",Rullion Engineering Ltd,5122193
BEIS,UKAEA,25/05/2022,Hired Agency Staff - Rullion CMF/PO,Other,"4,049.95",Rullion Engineering Ltd,5122194
BEIS,UKAEA,25/05/2022,Hired Agency Staff - Rullion CMF/PO,Other,"2,993.12",Rullion Engineering Ltd,5122195
BEIS,UKAEA,25/05/2022,Hired Agency Staff - Rullion CMF/PO,Fusion,"2,109.84",Rullion Engineering Ltd,5122196
BEIS,UKAEA,25/05/2022,Hired Agency Staff - Rullion CMF/PO,Fusion,"6,263.36",Rullion Engineering Ltd,5122197
BEIS,UKAEA,25/05/2022,Hired Agency Staff - Rullion CMF/PO,Fusion,"10,010.00",Rullion Engineering Ltd,5122198
BEIS,UKAEA,25/05/2022,Hired Agency Staff - Rullion CMF/PO,Other,"4,367.22",Rullion Engineering Ltd,5122199
BEIS,UKAEA,23/05/2022,Learning and Development,Fusion,939.25,Institution of Mechanical Engineers,5122201
BEIS,UKAEA,25/05/2022,Hired Agency Staff - Rullion CMF/PO,Fusion,"5,490.41",Rullion Engineering Ltd,5122202
BEIS,UKAEA,25/05/2022,Hired Agency Staff - Rullion CMF/PO,Fusion,"2,422.56",Rullion Engineering Ltd,5122204
BEIS,UKAEA,25/05/2022,Hired Agency Staff - Rullion CMF/PO,Fusion,"5,490.00",Rullion Engineering Ltd,5122205
BEIS,UKAEA,25/05/2022,Hired Agency Staff - Rullion CMF/PO,Fusion,"6,707.40",Rullion Engineering Ltd,5122206
BEIS,UKAEA,25/05/2022,Hired Agency Staff - Rullion CMF/PO,Fusion,"8,102.33",Rullion Engineering Ltd,5122207
BEIS,UKAEA,23/05/2022,Professional Services,Other,"10,725.00",SA Group Ltd,5122208
BEIS,UKAEA,23/05/2022,Engineering Goods,Fusion,"1,962.20",Ind-Tech Ltd,5122209
BEIS,UKAEA,23/05/2022,Engineering Goods,Fusion,"7,116.01",KSB Ltd,5122210
BEIS,UKAEA,23/05/2022,Engineering Goods,Fusion,"1,844.00",KSB Ltd,5122211
BEIS,UKAEA,23/05/2022,ICT,Fusion,"1,437.40",Oracle Corporation UK Limited,5122212
BEIS,UKAEA,23/05/2022,ICT,Fusion,"10,000.00",Oracle Corporation UK Limited,5122213
BEIS,UKAEA,25/05/2022,Hired Agency Staff - Rullion CMF/PO,Other,"9,202.30",Rullion Engineering Ltd,5122214
BEIS,UKAEA,25/05/2022,Hired Agency Staff - Rullion CMF/PO,Fusion,"4,061.33",Rullion Engineering Ltd,5122216
BEIS,UKAEA,25/05/2022,Hired Agency Staff - Rullion CMF/PO,Fusion,"6,438.16",Rullion Engineering Ltd,5122217
BEIS,UKAEA,25/05/2022,Hired Agency Staff - Rullion CMF/PO,Fusion,"6,465.38",Rullion Engineering Ltd,5122218
BEIS,UKAEA,23/05/2022,Professional Services,Fusion,"5,223.77",Frazer Nash Consultancy,5122219
BEIS,UKAEA,23/05/2022,Professional Services,Fusion,"10,000.00",Frazer Nash Consultancy,5122219
BEIS,UKAEA,25/05/2022,Hired Agency Staff - Rullion CMF/PO,Property,"6,414.45",Rullion Engineering Ltd,5122220
BEIS,UKAEA,25/05/2022,Hired Agency Staff - Rullion CMF/PO,Property,"1,817.43",Rullion Engineering Ltd,5122221
BEIS,UKAEA,23/05/2022,ICT,Other,"1,134.00",Dell Corporation Ltd,5122222
BEIS,UKAEA,23/05/2022,ICT,Other,"2,371.39",Dell Corporation Ltd,5122223
BEIS,UKAEA,23/05/2022,ICT,Property,"1,450.80",Dell Corporation Ltd,5122224
BEIS,UKAEA,23/05/2022,ICT,Property,"2,150.40",Dell Corporation Ltd,5122231
BEIS,UKAEA,25/05/2022,Hired Agency Staff - Rullion CMF/PO,Fusion,"4,601.60",Rullion Engineering Ltd,5122237
BEIS,UKAEA,23/05/2022,Research,Fusion,"30,000.00",Cranfield University,5122238
BEIS,UKAEA,25/05/2022,Construction,Fusion,"162,154.28",Kier Graham Defence Ltd,5122239
BEIS,UKAEA,26/05/2022,Engineering Goods,Other,"44,041.25",Viteris Technologies LLC,5122241
BEIS,UKAEA,25/05/2022,Hired Agency Staff - Rullion CMF/PO,Fusion,"3,187.52",Rullion Engineering Ltd,5122243
BEIS,UKAEA,25/05/2022,Construction,Fusion,"261,673.50",Doosan Babcock Ltd.,5122247
BEIS,UKAEA,25/05/2022,Construction,Fusion,"115,946.63",Doosan Babcock Ltd.,5122248
BEIS,UKAEA,23/05/2022,ICT,Fusion,"39,910.00",Jisc Commercial Ltd,5122249
BEIS,UKAEA,25/05/2022,Hired Agency Staff - Rullion CMF/PO,Fusion,"6,589.24",Rullion Engineering Ltd,5122250
BEIS,UKAEA,23/05/2022,Logistics and Shipping,Other,"3,905.00",Toutes Directions Limited,5122251
BEIS,UKAEA,23/05/2022,Facilities,Other,"2,172.00",SouthernsBroadstock Limited,5122253
BEIS,UKAEA,23/05/2022,Professional Services,Support Services,589.38,BDO LLP,5122254
BEIS,UKAEA,25/05/2022,Hired Agency Staff - Rullion CMF/PO,Fusion,"1,494.30",Rullion Engineering Ltd,5122255
BEIS,UKAEA,25/05/2022,Engineering Goods,Other,"1,184.48",BPX Electromechanical Company Limited,5122258
BEIS,UKAEA,25/05/2022,Engineering Goods,Other,"1,156.97",Rittal Limited,5122259
BEIS,UKAEA,25/05/2022,Hired Agency Staff - Rullion CMF/PO,Fusion,"1,219.38",Rullion Engineering Ltd,5122263
BEIS,UKAEA,25/05/2022,Hired Agency Staff - Rullion CMF/PO,Support Services,"6,236.92",Rullion Engineering Ltd,5122264
BEIS,UKAEA,25/05/2022,Facilities,Other,"9,080.80",Atkins Ltd,5122266
BEIS,UKAEA,25/05/2022,Engineering Goods,Fusion,620.34,Digi-Key Corporation,5122267
BEIS,UKAEA,25/05/2022,Engineering Goods,Fusion,911.21,Manutan UK Limited,5122270
BEIS,UKAEA,25/05/2022,Engineering Goods,Fusion,"4,540.00",RS Components Ltd,5122271
BEIS,UKAEA,25/05/2022,Hired Agency Staff - Rullion CMF/PO,Support Services,"8,160.98",Rullion Engineering Ltd,5122275
BEIS,UKAEA,25/05/2022,Hired Agency Staff - Rullion CMF/PO,Other,"7,537.52",Rullion Engineering Ltd,5122278
BEIS,UKAEA,25/05/2022,Communications,Other,"1,300.00",Kellylea PR Limited,5122281
BEIS,UKAEA,25/05/2022,Hired Agency Staff - Rullion CMF/PO,Fusion,"3,272.71",Rullion Engineering Ltd,5122282
BEIS,UKAEA,25/05/2022,Engineering Goods,Fusion,864.56,Farnell Electronic Components Ltd,5122283
BEIS,UKAEA,25/05/2022,Waste Management,Other,"1,004.50",Mercury Recycling Ltd,5122287
BEIS,UKAEA,25/05/2022,Professional Services,Property,"4,295.00",Ridge And Partners Llp,5122290
BEIS,UKAEA,25/05/2022,Engineering Goods,Fusion,600.04,ODU-UK Ltd.,5122291
BEIS,UKAEA,25/05/2022,Hired Agency Staff - Rullion CMF/PO,Support Services,"9,791.76",Rullion Engineering Ltd,5122294
BEIS,UKAEA,25/05/2022,Hired Agency Staff - Rullion CMF/PO,Support Services,"10,658.56",Rullion Engineering Ltd,5122295
BEIS,UKAEA,25/05/2022,Hired Agency Staff - Rullion CMF/PO,Support Services,"7,746.03",Rullion Engineering Ltd,5122296
BEIS,UKAEA,25/05/2022,Hired Agency Staff - Rullion CMF/PO,Support Services,"5,879.25",Rullion Engineering Ltd,5122299
BEIS,UKAEA,25/05/2022,Engineering Goods,Fusion,500.00,Electrical Oil Services Ltd,5122300
BEIS,UKAEA,25/05/2022,Hired Agency Staff - Rullion CMF/PO,Support Services,"5,953.77",Rullion Engineering Ltd,5122303
BEIS,UKAEA,25/05/2022,Hired Agency Staff - Rullion CMF/PO,Fusion,"8,499.76",Rullion Engineering Ltd,5122304
BEIS,UKAEA,25/05/2022,Hired Agency Staff - Rullion CMF/PO,Fusion,"5,762.29",Rullion Engineering Ltd,5122305
BEIS,UKAEA,25/05/2022,Hired Agency Staff - Rullion CMF/PO,Fusion,"4,120.21",Rullion Engineering Ltd,5122306
BEIS,UKAEA,25/05/2022,Hired Agency Staff - Rullion CMF/PO,Fusion,"3,323.13",Rullion Engineering Ltd,5122307
BEIS,UKAEA,25/05/2022,Hired Agency Staff - Rullion CMF/PO,Other,"6,592.49",Rullion Engineering Ltd,5122310
BEIS,UKAEA,25/05/2022,Hired Agency Staff - Rullion CMF/PO,Support Services,"30,559.48",Rullion Engineering Ltd,5122311
BEIS,UKAEA,25/05/2022,Professional Services,Other,"18,037.33",M5tec Limited,5122312
BEIS,UKAEA,25/05/2022,Hired Agency Staff - Rullion CMF/PO,Fusion,"4,721.64",Rullion Engineering Ltd,5122313
BEIS,UKAEA,25/05/2022,Hired Agency Staff - Rullion CMF/PO,Fusion,"3,925.98",Rullion Engineering Ltd,5122314
BEIS,UKAEA,25/05/2022,Hired Agency Staff - Rullion CMF/PO,Fusion,"3,793.35",Rullion Engineering Ltd,5122317
BEIS,UKAEA,25/05/2022,Engineering Goods,Fusion,800.12,Seton,5122319
BEIS,UKAEA,25/05/2022,Hired Agency Staff - Rullion CMF/PO,Fusion,"13,249.09",Rullion Engineering Ltd,5122320
BEIS,UKAEA,25/05/2022,Hired Agency Staff - Rullion CMF/PO,Fusion,"1,668.45",Rullion Engineering Ltd,5122324
BEIS,UKAEA,25/05/2022,Engineering Goods,Fusion,"41,531.90",Cyan Tech Systems Limited,5122327
BEIS,UKAEA,25/05/2022,Hired Agency Staff - Rullion CMF/PO,Fusion,"5,992.42",Rullion Engineering Ltd,5122329
BEIS,UKAEA,25/05/2022,Hired Agency Staff - Rullion CMF/PO,Fusion,"2,236.98",Rullion Engineering Ltd,5122331
BEIS,UKAEA,25/05/2022,Professional Services,Property,"5,500.00",Ridge And Partners Llp,5122332
BEIS,UKAEA,25/05/2022,Hired Agency Staff - Rullion CMF/PO,Fusion,"3,718.39",Rullion Engineering Ltd,5122333
BEIS,UKAEA,25/05/2022,Hired Agency Staff - Rullion CMF/PO,Fusion,"11,125.88",Rullion Engineering Ltd,5122335
BEIS,UKAEA,25/05/2022,Hired Agency Staff - Rullion CMF/PO,Fusion,"4,319.81",Rullion Engineering Ltd,5122339
BEIS,UKAEA,25/05/2022,Hired Agency Staff - Rullion CMF/PO,Fusion,"2,627.78",Rullion Engineering Ltd,5122340
BEIS,UKAEA,25/05/2022,Hired Agency Staff - Rullion CMF/PO,Support Services,"5,692.65",Rullion Engineering Ltd,5122341
BEIS,UKAEA,25/05/2022,Hired Agency Staff - Rullion CMF/PO,Fusion,"3,805.82",Rullion Engineering Ltd,5122343
BEIS,UKAEA,25/05/2022,Hired Agency Staff - Rullion CMF/PO,Fusion,"2,164.74",Rullion Engineering Ltd,5122346
BEIS,UKAEA,25/05/2022,Hired Agency Staff - Rullion CMF/PO,Support Services,"4,224.16",Rullion Engineering Ltd,5122348
BEIS,UKAEA,25/05/2022,Hired Agency Staff - Rullion CMF/PO,Other,"7,777.70",Rullion Engineering Ltd,5122349
BEIS,UKAEA,25/05/2022,Hired Agency Staff - Rullion CMF/PO,Other,"5,343.01",Rullion Engineering Ltd,5122350
BEIS,UKAEA,25/05/2022,Hired Agency Staff - Rullion CMF/PO,Other,"5,887.14",Rullion Engineering Ltd,5122351
BEIS,UKAEA,25/05/2022,Hired Agency Staff - Rullion CMF/PO,Other,"6,678.00",Rullion Engineering Ltd,5122352
BEIS,UKAEA,25/05/2022,Hired Agency Staff - Rullion CMF/PO,Other,"5,635.36",Rullion Engineering Ltd,5122353
BEIS,UKAEA,25/05/2022,Hired Agency Staff - Rullion CMF/PO,Other,"4,463.68",Rullion Engineering Ltd,5122354
BEIS,UKAEA,25/05/2022,Facilities,Fusion,"4,180.35",Engineering Analyis Services Ltd,5122355
BEIS,UKAEA,25/05/2022,Hired Agency Staff - Rullion CMF/PO,Other,"5,815.80",Rullion Engineering Ltd,5122357
BEIS,UKAEA,25/05/2022,Hired Agency Staff - Rullion CMF/PO,Support Services,"5,866.73",Rullion Engineering Ltd,5122358
BEIS,UKAEA,25/05/2022,Hired Agency Staff - Rullion CMF/PO,Other,"7,849.52",Rullion Engineering Ltd,5122359
BEIS,UKAEA,25/05/2022,Hired Agency Staff - Rullion CMF/PO,Other,"6,900.65",Rullion Engineering Ltd,5122360
BEIS,UKAEA,25/05/2022,Hired Agency Staff - Rullion CMF/PO,Support Services,"6,316.20",Rullion Engineering Ltd,5122361
BEIS,UKAEA,25/05/2022,Learning and Development,Support Services,895.00,Premier People Solutions T/A Premier Partnership,5122362
BEIS,UKAEA,25/05/2022,Learning and Development,Support Services,895.00,Premier People Solutions T/A Premier Partnership,5122363
BEIS,UKAEA,25/05/2022,Hired Agency Staff - Rullion CMF/PO,Support Services,"1,113.61",Rullion Engineering Ltd,5122367
BEIS,UKAEA,25/05/2022,Hired Agency Staff - Rullion CMF/PO,Fusion,"2,849.12",Rullion Engineering Ltd,5122370
BEIS,UKAEA,25/05/2022,Hired Agency Staff - Rullion CMF/PO,Fusion,"10,622.50",Rullion Engineering Ltd,5122373
BEIS,UKAEA,25/05/2022,Engineering Goods,Fusion,899.25,City Electrical Factors,5122378
BEIS,UKAEA,25/05/2022,Engineering Goods,Fusion,"-4,076.96",RS Components Ltd,5122381
BEIS,UKAEA,25/05/2022,Professional Services,Support Services,"4,242.50",Board Intelligence Ltd,5122382
BEIS,UKAEA,25/05/2022,Engineering Goods,Property,"5,674.35",City Electrical Factors,5122384
BEIS,UKAEA,25/05/2022,Engineering Goods,Other,"1,279.06",Edmundson Electricals Ltd,5122385
BEIS,UKAEA,25/05/2022,Facilities,Fusion,"46,875.00",Landwood Group,5122386
BEIS,UKAEA,25/05/2022,ICT,Fusion,"47,634.00",Aspen Technology Inc.,5122388
BEIS,UKAEA,25/05/2022,Hired Agency Staff - Rullion CMF/PO,Fusion,655.05,Rullion Engineering Ltd,5122389
BEIS,UKAEA,25/05/2022,Hired Agency Staff - Rullion CMF/PO,Other,"3,550.34",Rullion Engineering Ltd,5122390
BEIS,UKAEA,27/05/2022,Engineering Goods,Other,"2,661.07",Polysoude SAS,5122391
BEIS,UKAEA,25/05/2022,Learning and Development,Other,"1,575.00",Oxford Professional Education Group Limited,5122396
BEIS,UKAEA,25/05/2022,Engineering Goods,Other,"3,680.32",Swagelok Manchester  t/a Manchester Fluid System Technologies Limited,5122397
BEIS,UKAEA,25/05/2022,Hired Agency Staff - Rullion CMF/PO,Fusion,"3,502.76",Rullion Engineering Ltd,5122398
BEIS,UKAEA,27/05/2022,Office Solutions,Fusion,"1,377.47",IOP Publishing Ltd - EUR,5122399
BEIS,UKAEA,27/05/2022,Office Solutions,Fusion,"2,934.78",IOP Publishing Ltd - EUR,5122400
BEIS,UKAEA,25/05/2022,ICT,Other,"15,373.00",Vector Power Solutions Ltd,5122403
BEIS,UKAEA,25/05/2022,Engineering Goods,Fusion,687.80,Telonic Instruments Ltd,5122405
BEIS,UKAEA,25/05/2022,Hired Agency Staff - Rullion CMF/PO,Fusion,"5,865.57",Rullion Engineering Ltd,5122407
BEIS,UKAEA,25/05/2022,Hired Agency Staff - Rullion CMF/PO,Other,"5,158.40",Rullion Engineering Ltd,5122408
BEIS,UKAEA,25/05/2022,ICT,Property,"10,498.00",Colourcom Limited,5122409
BEIS,UKAEA,25/05/2022,Facilities,Property,"9,402.67",Castle Water Ltd,5122410
BEIS,UKAEA,25/05/2022,Hired Agency Staff - Rullion CMF/PO,Other,"5,537.33",Rullion Engineering Ltd,5122411
BEIS,UKAEA,25/05/2022,Hired Agency Staff - Rullion CMF/PO,Support Services,"11,587.50",Rullion Engineering Ltd,5122414
BEIS,UKAEA,25/05/2022,Facilities,Property,"1,397.00",Insulation Contracting Services Ltd,5122415
BEIS,UKAEA,25/05/2022,Facilities,Property,"6,166.07",Insulation Contracting Services Ltd,5122416
BEIS,UKAEA,25/05/2022,Engineering Goods,Fusion,587.50,RS Components Ltd,5122419
BEIS,UKAEA,25/05/2022,Engineering Goods,Fusion,"1,073.87",Pfeiffer Vacuum UK,5122420
BEIS,UKAEA,25/05/2022,Hired Agency Staff - Rullion CMF/PO,Fusion,"7,190.82",Rullion Engineering Ltd,5122421
BEIS,UKAEA,30/05/2022,Facilities,Property,"-9,619.76",Securitas Security Services,5122422
BEIS,UKAEA,30/05/2022,Facilities,Property,"-8,990.43",Securitas Security Services,5122422
BEIS,UKAEA,30/05/2022,Facilities,Property,"-2,500.31",Securitas Security Services,5122422
BEIS,UKAEA,30/05/2022,Facilities,Property,"-1,802.94",Securitas Security Services,5122422
BEIS,UKAEA,30/05/2022,Facilities,Property,"-1,385.01",Securitas Security Services,5122422
BEIS,UKAEA,30/05/2022,Facilities,Fusion,"-2,034.91",Securitas Security Services,5122424
BEIS,UKAEA,30/05/2022,Facilities,Fusion,"1,107.07",Securitas Security Services,5122426
BEIS,UKAEA,30/05/2022,Facilities,Property,"2,214.13",Securitas Security Services,5122426
BEIS,UKAEA,25/05/2022,Engineering Goods,Other,"1,680.45",Lapp Limited,5122428
BEIS,UKAEA,25/05/2022,Hired Agency Staff - Rullion CMF/PO,Fusion,"9,923.72",Rullion Engineering Ltd,5122429
BEIS,UKAEA,25/05/2022,Engineering Goods,Other,"11,335.23",Lapp Limited,5122430
BEIS,UKAEA,25/05/2022,Engineering Goods,Other,"13,618.88",Lapp Limited,5122431
BEIS,UKAEA,30/05/2022,Facilities,Fusion,"11,846.67",Securitas Security Services,5122432
BEIS,UKAEA,25/05/2022,Facilities,Fusion,"6,566.66",Jacobs Clean Energy Ltd - GBP,5122433
BEIS,UKAEA,25/05/2022,Professional Services,Fusion,"2,799.42",Jacobs Clean Energy Ltd - GBP,5122434
BEIS,UKAEA,25/05/2022,Hired Agency Staff - Rullion CMF/PO,Fusion,"3,344.07",Rullion Engineering Ltd,5122435
BEIS,UKAEA,25/05/2022,Hired Agency Staff - Rullion CMF/PO,Support Services,"3,380.63",Rullion Engineering Ltd,5122436
BEIS,UKAEA,25/05/2022,Hired Agency Staff - Rullion CMF/PO,Other,"5,044.25",Rullion Engineering Ltd,5122437
BEIS,UKAEA,25/05/2022,Hired Agency Staff - Rullion CMF/PO,Fusion,"1,541.45",Rullion Engineering Ltd,5122438
BEIS,UKAEA,25/05/2022,Hired Agency Staff - Rullion CMF/PO,Fusion,851.49,Rullion Engineering Ltd,5122439
BEIS,UKAEA,25/05/2022,Hired Agency Staff - Rullion CMF/PO,Fusion,"2,621.45",Rullion Engineering Ltd,5122441
BEIS,UKAEA,25/05/2022,Learning and Development,Support Services,"1,795.00",EEF Ltd,5122442
BEIS,UKAEA,25/05/2022,Hired Agency Staff - Rullion CMF/PO,Fusion,"1,795.35",Rullion Engineering Ltd,5122443
BEIS,UKAEA,25/05/2022,Hired Agency Staff - Rullion CMF/PO,Fusion,"6,727.37",Rullion Engineering Ltd,5122445
BEIS,UKAEA,25/05/2022,Engineering Goods,Fusion,"24,929.00",Oxford Refrigeration and Air Conditioning Ltd,5122446
BEIS,UKAEA,25/05/2022,Hired Agency Staff - Rullion CMF/PO,Fusion,"2,713.59",Rullion Engineering Ltd,5122448
BEIS,UKAEA,25/05/2022,Hired Agency Staff - Rullion CMF/PO,Fusion,"7,961.63",Rullion Engineering Ltd,5122449
BEIS,UKAEA,25/05/2022,Engineering Goods,Fusion,"4,527.25",Edwards Limited,5122452
BEIS,UKAEA,25/05/2022,Professional Services,Fusion,"15,000.00",Frazer Nash Consultancy,5122455
BEIS,UKAEA,25/05/2022,ICT,Fusion,"2,012.02",Dell Corporation Ltd,5122457
BEIS,UKAEA,25/05/2022,Research,Fusion,"2,500.00",Imperial College London - GBP,5122458
BEIS,UKAEA,25/05/2022,Hired Agency Staff - Rullion CMF/PO,Fusion,"5,231.45",Rullion Engineering Ltd,5122465
BEIS,UKAEA,25/05/2022,Hired Agency Staff - Rullion CMF/PO,Fusion,"2,999.80",Rullion Engineering Ltd,5122466
BEIS,UKAEA,25/05/2022,Engineering Goods,Fusion,611.00,Farnell Electronic Components Ltd,5122468
BEIS,UKAEA,25/05/2022,Personnel Related,Statement of Financial Position,503.57,Midcounties Co-Operative Ltd,5122469
BEIS,UKAEA,25/05/2022,Personnel Related,Statement of Financial Position,"6,456.00",Midcounties Co-Operative Ltd,5122469
BEIS,UKAEA,25/05/2022,Personnel Related,Statement of Financial Position,-886.20,Midcounties Co-Operative Ltd,5122470
BEIS,UKAEA,25/05/2022,Hired Agency Staff - Rullion CMF/PO,Fusion,"2,146.26",Rullion Engineering Ltd,5122472
BEIS,UKAEA,25/05/2022,Research,Fusion,"7,918.50",University of York - GBP,5122475
BEIS,UKAEA,27/05/2022,Engineering Goods,Fusion,914.43,Optosigma Europa SAS,5122476
BEIS,UKAEA,25/05/2022,Hired Agency Staff - Rullion CMF/PO,Support Services,"5,438.48",Rullion Engineering Ltd,5122477
BEIS,UKAEA,25/05/2022,Hired Agency Staff - Rullion CMF/PO,Support Services,"8,892.48",Rullion Engineering Ltd,5122478
BEIS,UKAEA,25/05/2022,Hired Agency Staff - Rullion CMF/PO,Support Services,"7,549.96",Rullion Engineering Ltd,5122479
BEIS,UKAEA,25/05/2022,Fleet,Other,615.33,Budget Forktrucks Ltd,5122480
BEIS,UKAEA,25/05/2022,Engineering Goods,Fusion,869.87,Budget Forktrucks Ltd,5122486
BEIS,UKAEA,25/05/2022,Hired Agency Staff - Rullion CMF/PO,Support Services,"7,167.23",Rullion Engineering Ltd,5122487
BEIS,UKAEA,25/05/2022,Research,Fusion,"2,916.75",University of York - GBP,5122488
BEIS,UKAEA,25/05/2022,Research,Fusion,"6,665.50",University of York - GBP,5122489
BEIS,UKAEA,25/05/2022,Engineering Goods,Other,967.37,Edmundson Electricals Ltd,5122490
BEIS,UKAEA,25/05/2022,Hired Agency Staff - Rullion CMF/PO,Support Services,"3,013.63",Rullion Engineering Ltd,5122491
BEIS,UKAEA,25/05/2022,Engineering Goods,Fusion,"7,200.00",Southern Scientific Ltd,5122493
BEIS,UKAEA,25/05/2022,Hired Agency Staff - Rullion CMF/PO,Fusion,"3,388.28",Rullion Engineering Ltd,5122495
BEIS,UKAEA,25/05/2022,Engineering Goods,Fusion,"8,896.67",Special Metals Fabrication,5122498
BEIS,UKAEA,25/05/2022,Hired Agency Staff - Rullion CMF/PO,Fusion,"2,481.96",Rullion Engineering Ltd,5122500
BEIS,UKAEA,30/05/2022,Hired Agency Staff - Rullion CMF/PO,Fusion,"1,492.20",Rullion Engineering Ltd,5122501
BEIS,UKAEA,30/05/2022,Engineering Goods,Property,"1,283.50",Sarens UK Ltd,5122505
BEIS,UKAEA,30/05/2022,Hired Agency Staff - Rullion CMF/PO,Support Services,"6,944.45",Rullion Engineering Ltd,5122506
BEIS,UKAEA,30/05/2022,Hired Agency Staff - Rullion CMF/PO,Fusion,"3,013.32",Rullion Engineering Ltd,5122507
BEIS,UKAEA,30/05/2022,Hired Agency Staff - Rullion CMF/PO,Fusion,"11,914.14",Rullion Engineering Ltd,5122508
BEIS,UKAEA,30/05/2022,Hired Agency Staff - Rullion CMF/PO,Fusion,"2,384.70",Rullion Engineering Ltd,5122512
BEIS,UKAEA,30/05/2022,Hired Agency Staff - Rullion CMF/PO,Fusion,"7,048.00",Rullion Engineering Ltd,5122514
BEIS,UKAEA,30/05/2022,Hired Agency Staff - Rullion CMF/PO,Fusion,"1,059.53",Rullion Engineering Ltd,5122516
BEIS,UKAEA,30/05/2022,Hired Agency Staff - Rullion CMF/PO,Fusion,"2,709.39",Rullion Engineering Ltd,5122517
BEIS,UKAEA,30/05/2022,Hired Agency Staff - Rullion CMF/PO,Fusion,"1,154.86",Rullion Engineering Ltd,5122518
BEIS,UKAEA,30/05/2022,Facilities,Fusion,721.00,JEH-Lasers Ltd,5122520
BEIS,UKAEA,30/05/2022,Hired Agency Staff - Rullion CMF/PO,Support Services,"5,696.26",Rullion Engineering Ltd,5122521
BEIS,UKAEA,30/05/2022,Hired Agency Staff - Rullion CMF/PO,Support Services,"2,343.20",Rullion Engineering Ltd,5122522
BEIS,UKAEA,30/05/2022,Hired Agency Staff - Rullion CMF/PO,Support Services,"2,436.48",Rullion Engineering Ltd,5122523
BEIS,UKAEA,30/05/2022,Hired Agency Staff - Rullion CMF/PO,Support Services,"1,530.76",Rullion Engineering Ltd,5122524
BEIS,UKAEA,30/05/2022,Hired Agency Staff - Rullion CMF/PO,Fusion,"8,079.52",Rullion Engineering Ltd,5122525
BEIS,UKAEA,30/05/2022,Hired Agency Staff - Rullion CMF/PO,Other,"1,143.86",Rullion Engineering Ltd,5122526
BEIS,UKAEA,30/05/2022,Hired Agency Staff - Rullion CMF/PO,Support Services,"6,964.23",Rullion Engineering Ltd,5122527
BEIS,UKAEA,30/05/2022,Hired Agency Staff - Rullion CMF/PO,Support Services,"7,649.25",Rullion Engineering Ltd,5122528
BEIS,UKAEA,30/05/2022,Hired Agency Staff - Rullion CMF/PO,Fusion,"2,008.50",Rullion Engineering Ltd,5122529
BEIS,UKAEA,30/05/2022,Engineering Goods,Other,548.84,RS Components Ltd,5122531
BEIS,UKAEA,30/05/2022,Hired Agency Staff - Rullion CMF/PO,Other,"3,416.40",Rullion Engineering Ltd,5122533
BEIS,UKAEA,30/05/2022,Engineering Goods,Fusion,"2,627.92",RS Components Ltd,5122534
BEIS,UKAEA,30/05/2022,Engineering Goods,Fusion,"1,915.68",RS Components Ltd,5122535
BEIS,UKAEA,30/05/2022,Operational Goods,Fusion,"1,990.00",Arco Ltd,5122538
BEIS,UKAEA,30/05/2022,Operational Goods,Fusion,"3,123.00",Arco Ltd,5122540
BEIS,UKAEA,30/05/2022,Hired Agency Staff - Rullion CMF/PO,Fusion,"1,639.81",Rullion Engineering Ltd,5122542
BEIS,UKAEA,30/05/2022,Research,Fusion,"1,550.85",University of York - GBP,5122544
BEIS,UKAEA,30/05/2022,Hired Agency Staff - Rullion CMF/PO,Fusion,"4,069.01",Rullion Engineering Ltd,5122545
BEIS,UKAEA,30/05/2022,Hired Agency Staff - Rullion CMF/PO,Support Services,"6,582.35",Rullion Engineering Ltd,5122546
BEIS,UKAEA,30/05/2022,Hired Agency Staff - Rullion CMF/PO,Fusion,"2,715.08",Rullion Engineering Ltd,5122547
BEIS,UKAEA,30/05/2022,Personnel Related,Support Services,"2,640.75",Nuclear Industry Association,5122548
BEIS,UKAEA,30/05/2022,Hired Agency Staff - Rullion CMF/PO,Other,"7,001.06",Rullion Engineering Ltd,5122549
BEIS,UKAEA,30/05/2022,Hired Agency Staff - Rullion CMF/PO,Support Services,"8,354.22",Rullion Engineering Ltd,5122550
BEIS,UKAEA,30/05/2022,Hired Agency Staff - Rullion CMF/PO,Fusion,"6,228.46",Rullion Engineering Ltd,5122551
BEIS,UKAEA,30/05/2022,Hired Agency Staff - Rullion CMF/PO,Other,"5,106.12",Rullion Engineering Ltd,5122554
BEIS,UKAEA,30/05/2022,Hired Agency Staff - Rullion CMF/PO,Other,811.08,Rullion Engineering Ltd,5122555
BEIS,UKAEA,30/05/2022,Engineering Goods,Fusion,675.08,Comtec Cable Accessories Ltd,5122556
BEIS,UKAEA,30/05/2022,Facilities,Other,725.00,The Harris Partnership Ltd,5122557
BEIS,UKAEA,30/05/2022,Facilities,Fusion,"8,472.00",JEH-Lasers Ltd,5122558
BEIS,UKAEA,30/05/2022,Hired Agency Staff - Rullion CMF/PO,Other,"6,931.38",Rullion Engineering Ltd,5122559
BEIS,UKAEA,30/05/2022,Hired Agency Staff - Rullion CMF/PO,Support Services,"6,292.50",Rullion Engineering Ltd,5122566
BEIS,UKAEA,30/05/2022,Hired Agency Staff - Rullion CMF/PO,Support Services,"5,234.88",Rullion Engineering Ltd,5122567
BEIS,UKAEA,30/05/2022,Hired Agency Staff - Rullion CMF/PO,Fusion,"3,553.13",Rullion Engineering Ltd,5122568
BEIS,UKAEA,30/05/2022,Hired Agency Staff - Rullion CMF/PO,Support Services,"8,623.80",Rullion Engineering Ltd,5122569
BEIS,UKAEA,30/05/2022,Engineering Goods,Fusion,518.33,Farnell Electronic Components Ltd,5122570
BEIS,UKAEA,30/05/2022,Hired Agency Staff - Rullion CMF/PO,Fusion,601.20,Rullion Engineering Ltd,5122575
BEIS,UKAEA,30/05/2022,Facilities,Property,"19,719.00",Oxford Direct Services Trading Ltd,5122576
BEIS,UKAEA,26/05/2022,Engineering Goods,Other,"13,737.91",Tech Weld I Blekinge AB,5122578
BEIS,UKAEA,30/05/2022,Hired Agency Staff - Rullion CMF/PO,Fusion,"1,856.30",Rullion Engineering Ltd,5122581
BEIS,UKAEA,30/05/2022,Hired Agency Staff - Rullion CMF/PO,Support Services,"4,731.20",Rullion Engineering Ltd,5122582
BEIS,UKAEA,30/05/2022,Hired Agency Staff - Rullion CMF/PO,Fusion,"3,040.62",Rullion Engineering Ltd,5122588
BEIS,UKAEA,30/05/2022,Professional Services,Other,"1,773.33",Ove Arup & Partners,5122589
BEIS,UKAEA,30/05/2022,Research,Fusion,601.78,University of Manchester (GBP),5122590
BEIS,UKAEA,30/05/2022,Hired Agency Staff - Rullion CMF/PO,Support Services,"9,165.00",Rullion Engineering Ltd,5122591
BEIS,UKAEA,30/05/2022,Hired Agency Staff - Rullion CMF/PO,Fusion,"2,870.22",Rullion Engineering Ltd,5122592
BEIS,UKAEA,30/05/2022,Research,Fusion,"3,213.98",University of York - GBP,5122594
BEIS,UKAEA,30/05/2022,Hired Agency Staff - Rullion CMF/PO,Fusion,"6,648.30",Rullion Engineering Ltd,5122595
BEIS,UKAEA,30/05/2022,Research,Fusion,"2,925.36",University of York - GBP,5122597
BEIS,UKAEA,30/05/2022,Research,Fusion,"3,021.25",University of York - GBP,5122598
BEIS,UKAEA,30/05/2022,Hired Agency Staff - Rullion CMF/PO,Other,"4,500.40",Rullion Engineering Ltd,5122600
BEIS,UKAEA,30/05/2022,Hired Agency Staff - Rullion CMF/PO,Support Services,"3,504.61",Rullion Engineering Ltd,5122602
BEIS,UKAEA,30/05/2022,Professional Services,Fusion,"5,133.70",Atkins Ltd,5122603
BEIS,UKAEA,30/05/2022,Professional Services,Fusion,"5,807.48",Cool-Therm (UK) Limited,5122604
BEIS,UKAEA,30/05/2022,Operational Goods,Fusion,"3,360.00",Arco Ltd,5122606
BEIS,UKAEA,30/05/2022,Engineering Goods,Fusion,"2,340.00",Michael Smith Engineers Limited,5122607
BEIS,UKAEA,30/05/2022,Facilities,Property,"3,531.98",Securitas Security Services,5122609
BEIS,UKAEA,30/05/2022,Facilities,Property,"4,695.89",Securitas Security Services,5122609
BEIS,UKAEA,30/05/2022,Facilities,Property,"10,416.80",Securitas Security Services,5122609
BEIS,UKAEA,30/05/2022,Facilities,Property,"38,419.26",Securitas Security Services,5122609
BEIS,UKAEA,30/05/2022,Facilities,Property,"49,783.39",Securitas Security Services,5122609
BEIS,UKAEA,30/05/2022,Hired Agency Staff - Rullion CMF/PO,Support Services,"9,834.19",Rullion Engineering Ltd,5122614
BEIS,UKAEA,30/05/2022,Hired Agency Staff - Rullion CMF/PO,Fusion,"5,897.80",Rullion Engineering Ltd,5122616
BEIS,UKAEA,30/05/2022,Facilities,Fusion,"2,200.00",Trinity Fire & Security Systems Ltd,5122617
BEIS,UKAEA,30/05/2022,Engineering Goods,Fusion,"1,801.95",Swagelok London,5122618
BEIS,UKAEA,30/05/2022,Engineering Goods,Fusion,"5,828.84",Bruntons Aero Products Ltd,5122620
BEIS,UKAEA,30/05/2022,Hired Agency Staff - Rullion CMF/PO,Fusion,"6,005.58",Rullion Engineering Ltd,5122627
BEIS,UKAEA,30/05/2022,Construction,Property,"121,599.66",Mildren Construction Ltd,5122629
BEIS,UKAEA,30/05/2022,Engineering Goods,Fusion,"1,555.40",Vacuum & Atmosphere Services Ltd,5122634
BEIS,UKAEA,30/05/2022,Hired Agency Staff - Rullion CMF/PO,Fusion,"5,140.77",Rullion Engineering Ltd,5122635
BEIS,UKAEA,30/05/2022,Hired Agency Staff - Rullion CMF/PO,Support Services,"5,183.10",Rullion Engineering Ltd,5122637
BEIS,UKAEA,30/05/2022,Hired Agency Staff - Rullion CMF/PO,Support Services,"3,636.34",Rullion Engineering Ltd,5122638
BEIS,UKAEA,30/05/2022,Engineering Goods,Fusion,"6,529.00",Konecranes Demag (UK) Ltd,5122639
BEIS,UKAEA,30/05/2022,Hired Agency Staff - Rullion CMF/PO,Support Services,"3,327.77",Rullion Engineering Ltd,5122640
BEIS,UKAEA,30/05/2022,Engineering Goods,Fusion,"1,692.88",Harting Ltd,5122642
BEIS,UKAEA,30/05/2022,Learning and Development,Other,"3,354.40",Premier People Solutions T/A Premier Partnership,5122645
BEIS,UKAEA,30/05/2022,Facilities,Fusion,"1,550.00",CSS Worksafe,5122654
BEIS,UKAEA,30/05/2022,Hired Agency Staff - Rullion CMF/PO,Fusion,"4,453.10",Rullion Engineering Ltd,5122655
BEIS,UKAEA,30/05/2022,Hired Agency Staff - Rullion CMF/PO,Fusion,"3,128.74",Rullion Engineering Ltd,5122656
BEIS,UKAEA,30/05/2022,Facilities,Property,"104,960.00",South Oxfordshire District Council,5122658
BEIS,UKAEA,30/05/2022,Engineering Goods,Fusion,559.34,Farnell Electronic Components Ltd,5122661
BEIS,UKAEA,30/05/2022,Hired Agency Staff - Rullion CMF/PO,Fusion,"11,674.65",Rullion Engineering Ltd,5122664
BEIS,UKAEA,30/05/2022,Learning and Development,Support Services,"1,073.75",Trainingteam,5122665
BEIS,UKAEA,30/05/2022,Professional Services,Other,"1,500.00",The Harris Partnership Ltd,5122668
BEIS,UKAEA,30/05/2022,Hired Agency Staff - Rullion CMF/PO,Other,"-8,033.46",Rullion Engineering Ltd,5122671
BEIS,UKAEA,30/05/2022,Engineering Goods,Other,"1,593.96",Underwoods Electrical Distributors,5122673
BEIS,UKAEA,30/05/2022,Engineering Goods,Other,"1,472.00",Underwoods Electrical Distributors,5122674
BEIS,UKAEA,30/05/2022,Engineering Goods,Other,"1,000.00",CN Technical Services Ltd,5122675
BEIS,UKAEA,30/05/2022,Hired Agency Staff - Rullion CMF/PO,Support Services,"7,125.55",Rullion Engineering Ltd,5122679
BEIS,UKAEA,30/05/2022,Engineering Goods,Fusion,"23,870.00",ERIKS Industrial Services Ltd,5122680
BEIS,UKAEA,30/05/2022,Engineering Goods,Fusion,843.00,Life Safety Distribution GmbH,5122681
BEIS,UKAEA,30/05/2022,Engineering Goods,Fusion,"7,163.00",Life Safety Distribution GmbH,5122681
BEIS,UKAEA,30/05/2022,Hired Agency Staff - Rullion CMF/PO,Property,"1,733.59",Rullion Engineering Ltd,5122682
BEIS,UKAEA,30/05/2022,Professional Services,Fusion,"13,000.00",McBains Ltd,5122684
BEIS,UKAEA,30/05/2022,Construction,Support Services,530.70,Doosan Babcock Ltd.,5122688
BEIS,UKAEA,30/05/2022,Construction,Support Services,"1,598.28",Doosan Babcock Ltd.,5122689
BEIS,UKAEA,30/05/2022,Construction,Property,"44,455.37",Mildren Construction Ltd,5122693
BEIS,UKAEA,30/05/2022,Hired Agency Staff - Rullion CMF/PO,Fusion,"4,610.93",Rullion Engineering Ltd,5122694
BEIS,UKAEA,30/05/2022,ICT,Support Services,"22,598.89",Cinos Limited,5122695
BEIS,UKAEA,30/05/2022,ICT,Support Services,"25,923.17",Cinos Limited,5122695
BEIS,UKAEA,30/05/2022,ICT,Support Services,"26,708.94",Cinos Limited,5122695
BEIS,UKAEA,30/05/2022,Hired Agency Staff - Rullion CMF/PO,Fusion,"5,125.80",Rullion Engineering Ltd,5122696
BEIS,UKAEA,30/05/2022,Hired Agency Staff - Rullion CMF/PO,Fusion,973.50,Rullion Engineering Ltd,5122698
BEIS,UKAEA,30/05/2022,Hired Agency Staff - Rullion CMF/PO,Fusion,"2,634.15",Rullion Engineering Ltd,5122699
BEIS,UKAEA,30/05/2022,Facilities,Fusion,"5,579.84",Jacobs Clean Energy Ltd - GBP,5122701
BEIS,UKAEA,30/05/2022,Facilities,Property,"3,889.26",Jacobs Clean Energy Ltd - GBP,5122702
BEIS,UKAEA,30/05/2022,Facilities,Other,"10,708.31",Jacobs Clean Energy Ltd - GBP,5122703
BEIS,UKAEA,30/05/2022,Professional Services,Fusion,"10,304.55",Jacobs Clean Energy Ltd - GBP,5122704
BEIS,UKAEA,30/05/2022,Professional Services,Fusion,"3,694.08",Jacobs Clean Energy Ltd - GBP,5122705
BEIS,UKAEA,30/05/2022,Learning and Development,Fusion,"3,048.00",Sundry Supplier,5122706
BEIS,UKAEA,30/05/2022,Hired Agency Staff - Rullion CMF/PO,Fusion,"1,521.90",Rullion Engineering Ltd,5122707
BEIS,UKAEA,30/05/2022,Learning and Development,Support Services,895.00,Premier People Solutions T/A Premier Partnership,5122709
BEIS,UKAEA,30/05/2022,Learning and Development,Support Services,895.00,Premier People Solutions T/A Premier Partnership,5122710
BEIS,UKAEA,30/05/2022,Learning and Development,Support Services,"2,300.00",Premier People Solutions T/A Premier Partnership,5122711
BEIS,UKAEA,30/05/2022,ICT,Property,900.00,Symetri Ltd,5122721
BEIS,UKAEA,30/05/2022,Facilities,Property,"3,031.49",Castle Water Ltd,5122724
BEIS,UKAEA,30/05/2022,Engineering Goods,Fusion,"1,963.96",Underwoods Electrical Distributors,5122725
BEIS,UKAEA,30/05/2022,Engineering Goods,Other,"3,012.62",ES Precision,5122726
BEIS,UKAEA,30/05/2022,Engineering Goods,Fusion,"1,867.20",BOC Ltd,5122730
BEIS,UKAEA,30/05/2022,Engineering Goods,Fusion,"71,200.22",BOC Ltd,5122731
BEIS,UKAEA,30/05/2022,Engineering Goods,Fusion,"2,100.01",Routeco,5122732
BEIS,UKAEA,30/05/2022,Hired Agency Staff - Rullion CMF/PO,Fusion,"3,557.59",Rullion Engineering Ltd,5122734
BEIS,UKAEA,30/05/2022,Engineering Goods,Fusion,800.00,Van Toan Lee LTD,5122736
BEIS,UKAEA,30/05/2022,Fleet,Property,770.00,Rabbits Vehicle Hire,5122738
BEIS,UKAEA,30/05/2022,Facilities,Property,"4,813.27",Securitas Security Services,5122740
BEIS,UKAEA,30/05/2022,Engineering Goods,Fusion,765.25,Konecranes Demag (UK) Ltd,5122741
BEIS,UKAEA,30/05/2022,Hired Agency Staff - Rullion CMF/PO,Fusion,"2,572.14",Rullion Engineering Ltd,5122742
BEIS,UKAEA,30/05/2022,Engineering Goods,Fusion,"1,250.00",D Furnell Plant Services Ltd,5122743
BEIS,UKAEA,30/05/2022,Energy and Fuels,Property,"75,017.05",Total Gas & Power Ltd,5122745
BEIS,UKAEA,30/05/2022,Facilities,Fusion,"9,792.00",Atkins Ltd,5122746
BEIS,UKAEA,30/05/2022,Professional Services,Property,"10,260.94",Ridge And Partners Llp,5122747
BEIS,UKAEA,30/05/2022,Professional Services,Property,"1,500.00",Ridge And Partners Llp,5122748
BEIS,UKAEA,30/05/2022,Hired Agency Staff - Rullion CMF/PO,Fusion,"4,364.60",Rullion Engineering Ltd,5122750
BEIS,UKAEA,30/05/2022,Hired Agency Staff - Rullion CMF/PO,Fusion,"4,709.27",Rullion Engineering Ltd,5122751
BEIS,UKAEA,30/05/2022,Hired Agency Staff - Rullion CMF/PO,Fusion,"4,757.82",Rullion Engineering Ltd,5122756
BEIS,UKAEA,30/05/2022,Hired Agency Staff - Rullion CMF/PO,Fusion,"8,094.84",Rullion Engineering Ltd,5122757
BEIS,UKAEA,30/05/2022,Professional Services,Fusion,"7,995.40",Doosan Babcock Ltd.,5122762
BEIS,UKAEA,30/05/2022,Engineering Goods,Other,"2,352.00",Sundry Supplier,5122763
BEIS,UKAEA,30/05/2022,Communications,Other,"3,260.00",CTI Digital Limited,5122764
BEIS,UKAEA,30/05/2022,Hired Agency Staff - Rullion CMF/PO,Support Services,"1,755.30",Rullion Engineering Ltd,5122765
BEIS,UKAEA,30/05/2022,Hired Agency Staff - Rullion CMF/PO,Support Services,"5,072.82",Rullion Engineering Ltd,5122766
BEIS,UKAEA,30/05/2022,Engineering Goods,Other,"2,176.00",Omniflex UK Ltd,5122767
BEIS,UKAEA,30/05/2022,Engineering Goods,Other,"116,428.04",James Fisher Nuclear Limited,5122769
BEIS,UKAEA,30/05/2022,Professional Services,Fusion,"5,561.02",Atkins Ltd,5122770
BEIS,UKAEA,30/05/2022,Hired Agency Staff - Rullion CMF/PO,Fusion,"5,339.89",Rullion Engineering Ltd,5122772
BEIS,UKAEA,30/05/2022,Hired Agency Staff - Rullion CMF/PO,Support Services,"4,481.21",Rullion Engineering Ltd,5122773
BEIS,UKAEA,30/05/2022,Hired Agency Staff - Rullion CMF/PO,Fusion,"2,272.63",Rullion Engineering Ltd,5122777
BEIS,UKAEA,30/05/2022,Hired Agency Staff - Rullion CMF/PO,Fusion,"9,614.15",Rullion Engineering Ltd,5122778
BEIS,UKAEA,30/05/2022,Hired Agency Staff - Rullion CMF/PO,Fusion,"3,641.88",Rullion Engineering Ltd,5122779
BEIS,UKAEA,30/05/2022,ICT,Other,"3,641.40",Dell Corporation Ltd,5122784
BEIS,UKAEA,30/05/2022,ICT,Fusion,927.21,Dell Corporation Ltd,5122785
BEIS,UKAEA,30/05/2022,ICT,Support Services,"8,567.10",Insight Direct UK Ltd,5122786
BEIS,UKAEA,30/05/2022,Operational Goods,Fusion,596.00,TTS Training Services,5122789
BEIS,UKAEA,30/05/2022,Hired Agency Staff - Rullion CMF/PO,Fusion,"5,285.29",Rullion Engineering Ltd,5122791
BEIS,UKAEA,30/05/2022,Hired Agency Staff - Rullion CMF/PO,Support Services,823.28,Rullion Engineering Ltd,5122792
BEIS,UKAEA,30/05/2022,Hired Agency Staff - Rullion CMF/PO,Support Services,879.30,Rullion Engineering Ltd,5122793
BEIS,UKAEA,30/05/2022,Personnel Related,Property,"3,128.75",Rullion Engineering Ltd,5122794
BEIS,UKAEA,30/05/2022,Personnel Related,Support Services,"11,500.00",Korn Ferry Hay Group Limited,5122795
BEIS,UKAEA,30/05/2022,ICT,Fusion,"9,361.00",Fujitsu Services Ltd,5122796
BEIS,UKAEA,30/05/2022,Learning and Development,Other,795.00,Oxford University - GBP,5122797
BEIS,UKAEA,30/05/2022,Engineering Goods,Fusion,"2,010.00",AS Scientific Products Ltd,5122799
BEIS,UKAEA,30/05/2022,Hired Agency Staff - Rullion CMF/PO,Fusion,"2,682.69",Rullion Engineering Ltd,5122800
BEIS,UKAEA,30/05/2022,Engineering Goods,Fusion,"8,644.86",Burckhardt Compression UK Ltd,5122802
BEIS,UKAEA,30/05/2022,Engineering Goods,Fusion,"19,680.00",Phoenix Dosimetry Ltd,5122820
BEIS,UKAEA,30/05/2022,Engineering Goods,Other,"2,596.50",Red Daisy Ltd t/a Barrier 2 Go,5122821
BEIS,UKAEA,30/05/2022,Engineering Goods,Fusion,"1,318.80",Farnell Electronic Components Ltd,5122822
BEIS,UKAEA,30/05/2022,Research,Fusion,"1,132.88",Oxford University - GBP,5122830
BEIS,UKAEA,30/05/2022,ICT,Fusion,"118,354.00",Aspen Technology Inc.,5122832
BEIS,UKAEA,30/05/2022,Engineering Goods,Property,623.27,RS Components Ltd,5122835
BEIS,UKAEA,30/05/2022,Logistics and Shipping,Other,"4,990.00",Toutes Directions Limited,5122838
BEIS,UKAEA,30/05/2022,Hired Agency Staff - Rullion CMF/PO,Other,"3,223.14",Rullion Engineering Ltd,5122843
BEIS,UKAEA,30/05/2022,Hired Agency Staff - Rullion CMF/PO,Support Services,"9,729.60",Rullion Engineering Ltd,5122847
BEIS,UKAEA,30/05/2022,Facilities,Property,"7,305.22",Castle Water Ltd,5122850
BEIS,UKAEA,30/05/2022,Professional Services,Other,944.65,NSG Environmental Ltd,5122855
BEIS,UKAEA,30/05/2022,Consultancy - Other (per Cabinet Office definition),Fusion,"2,904.39",NSG Environmental Ltd,5122855
BEIS,UKAEA,30/05/2022,Engineering Goods,Fusion,943.92,RS Components Ltd,5122858
BEIS,UKAEA,30/05/2022,Hired Agency Staff - Rullion CMF/PO,Support Services,"7,484.40",Rullion Engineering Ltd,5122860
BEIS,UKAEA,30/05/2022,Hired Agency Staff - Rullion CMF/PO,Support Services,"7,670.57",Rullion Engineering Ltd,5122861
BEIS,UKAEA,30/05/2022,Facilities,Fusion,"2,010.20",Securitas Security Services,5122872
BEIS,UKAEA,06/05/2022,Entertainment - Business,Other,889.65,Employee Expenses,20011907
BEIS,UKAEA,06/05/2022,Other Employee Expenses,Fusion,"2,582.71",Employee Expenses,20011919
BEIS,UKAEA,11/05/2022,Entertainment - Business,Other,800.00,Employee Expenses,20011944
BEIS,UKAEA,11/05/2022,Relocation Costs,Fusion,"1,026.06",Employee Expenses,20011976
BEIS,UKAEA,23/05/2022,Other Employee Expenses,Fusion,"1,449.60",Employee Expenses,20012062
BEIS,UKAEA,23/05/2022,Other Employee Expenses,Fusion,"5,701.00",Employee Expenses,20012062
BEIS,UKAEA,30/05/2022,Relocation Costs,Other,637.19,Employee Expenses,20012111
BEIS,UKAEA,30/05/2022,Relocation Costs,Other,"2,122.00",Employee Expenses,20012111
BEIS,UKAEA,Various,Various,Employee Expenses <500,"31,454.73",,Various
BEIS,UKAEA,Various,Various,Supplier <500,"145,781.43",,Various
